Department,Entity,Posted Date,Internal Voucher Number, Invoice Line Amount Net GBP ,Supplier Name,Account Code
FCO,FCO,21/03/2018,9527126," 110,000,000.00 ",HOME OFFICE,UKBA Visa Income Creditor Control
FCO,FCO,13/03/2018,9511697," 13,000,000.00 ",THE BRITISH COUNCIL,Programme Spend (Oracle Projects Control Account)
FCO,FCO,27/03/2018,9538592," 10,017,971.17 ",ORGANISATION FOR ECONOMIC CO OPERATION AND DEVELOPMENT OECD,Programme Spend (Oracle Projects Control Account)
FCO,FCO,23/03/2018,9532100," 9,282,987.67 ",NATO INTERNATIONAL STAFF,Programme Spend (Oracle Projects Control Account)
FCO,FCO,13/03/2018,9511777," 7,769,000.00 ",BBC BRITISH BROADCASTING CORPORATION,Programme Spend (Oracle Projects Control Account)
FCO,FCO,28/03/2018,9541637," 7,000,000.00 ",THE BRITISH COUNCIL,Programme Spend (Oracle Projects Control Account)
FCO,FCO,06/03/2018,9495532," 3,600,000.00 ",UNITED NATIONS,Programme Spend (Oracle Projects Control Account)
FCO,FCO,27/03/2018,9538553," 3,343,087.18 ",ORGANISATION FOR ECONOMIC CO OPERATION AND DEVELOPMENT OECD,Programme Spend (Oracle Projects Control Account)
FCO,FCO,21/03/2018,9527381," 3,275,697.52 ",MAYDAY RESCUE,Programme Spend (Oracle Projects Control Account)
FCO,FCO,26/03/2018,9535632," 3,193,941.55 ",VODAFONE LTD CABLE AND WIRELESS UK,Telephone line and equipment rental charges
FCO,FCO,22/03/2018,9529829," 3,000,000.00 ",UNOPS,Programme Spend (Oracle Projects Control Account)
FCO,FCO,12/03/2018,9507800," 2,980,844.65 ",NATO INTERNATIONAL STAFF,Programme Spend (Oracle Projects Control Account)
FCO,FCO,01/03/2018,9512416," 2,949,381.23 ",THE ROYAL BANK OF SCOTLAND,Corporate Credit Card Clearing Account
FCO,FCO,12/03/2018,9506508," 2,917,414.00 ",HMRC HM REVENUE AND CUSTOMS,Multiple Accounts
FCO,FCO,26/03/2018,9535612," 2,915,555.85 ",HMRC HM REVENUE AND CUSTOMS,Multiple Accounts
FCO,FCO,20/03/2018,9525344," 2,002,360.06 ",UNITED NATIONS,Programme Spend (Oracle Projects Control Account)
FCO,FCO,19/03/2018,9522834," 1,888,054.98 ",HOME OFFICE,Programme Spend (Oracle Projects Control Account)
FCO,FCO,14/03/2018,9514004," 1,850,000.00 ",ISS FACILITY SERVICES LTD FCO OP - POE,FMCU POE Trust Account Debtor
FCO,FCO,15/03/2018,9516463," 1,773,180.27 ",TBR GLOBAL CHAUFFEURING,Vehicle Hire
FCO,FCO,13/03/2018,9511626," 1,675,897.58 ",FCO SERVICES,Specialist Contractors
FCO,FCO,01/03/2018,9487850," 1,458,043.00 ",HMRC HM REVENUE AND CUSTOMS,Le Staff Pay Contingency
FCO,FCO,19/03/2018,9522767," 1,402,939.54 ",FINANCIERA DE DESARROLLO TERRITORIAL SA FINDETER,Programme Spend (Oracle Projects Control Account)
FCO,FCO,12/03/2018,9507389," 1,261,602.87 ",M INTEGRATED SOLUTIONS,Inward visits to the UK and UK Conferences
FCO,FCO,23/03/2018,9531503," 1,199,715.10 ",ADAM SMITH INTERNATIONAL,Programme Spend (Oracle Projects Control Account)
FCO,FCO,26/03/2018,9535641," 1,196,876.58 ",VODAFONE LTD CABLE AND WIRELESS UK,Telephone line and equipment rental charges
FCO,FCO,23/03/2018,9532061," 1,174,982.90 ",G4S RISK MANAGEMENT LTD,UK Guarding Contracts Overseas
FCO,FCO,12/03/2018,9507794," 1,151,904.72 ",EUROPEAN BANK FOR RECONSTRUCTION AND DEVELOPMENT,Protocol - General VAT Refunds to Other Organisations
FCO,FCO,12/03/2018,9506522," 1,132,340.34 ",CABINET OFFICE,Multiple Accounts
FCO,FCO,26/03/2018,9535606," 1,130,502.43 ",CABINET OFFICE,Multiple Accounts
FCO,FCO,09/03/2018,9503683," 1,111,789.27 ",B V SCHEEPSWERF DAMEN GORINCHEM,Programme Spend (Oracle Projects Control Account)
FCO,FCO,01/03/2018,9512591," 1,080,382.49 ",THE ROYAL BANK OF SCOTLAND,Travel Package Advance Overseas Posting (Credit Card Payments Only)
FCO,FCO,14/03/2018,9514396," 1,078,361.40 ",FCO SERVICES,IT/IS Consultancy
FCO,FCO,26/03/2018,9535587," 1,019,632.61 ",RISK ADVISORY GROUP PLC,Programme Spend (Oracle Projects Control Account)
FCO,FCO,22/03/2018,9529186," 992,911.05 ",FCO SERVICES,Residential Property Services
FCO,FCO,07/03/2018,9498541," 959,900.87 ",GARDA WORLD LTD,UK Mobile Guarding Contract overseas
FCO,FCO,12/03/2018,9507688," 950,000.00 ",GOVERNMENT OF SOUTH GEORGIA AND THE SOUTH SANDWICH ISLANDS,Programme Spend (Oracle Projects Control Account)
FCO,FCO,19/03/2018,9522250," 881,678.72 ",IRISH LIFE,Local Staff Pension Contributions
FCO,FCO,06/03/2018,9495723," 860,219.00 ",STRUCTURE TONE LLC,Assets Under Construction (Oracle PA Control Account)
FCO,FCO,02/03/2018,9489580," 843,172.41 ",DFID DEPT INTERNATIONAL DEVELOPMENT,Rental Payments - residential
FCO,FCO,09/03/2018,9503688," 833,841.95 ",B V SCHEEPSWERF DAMEN GORINCHEM,Programme Spend (Oracle Projects Control Account)
FCO,FCO,27/03/2018,9539017," 833,163.10 ",M INTEGRATED SOLUTIONS,Inward visits to the UK and UK Conferences
FCO,FCO,21/03/2018,9527389," 811,900.00 ",COMPUTACENTER UK LTD,Assets Under Construction (Oracle PA Control Account)
FCO,FCO,26/03/2018,9535488," 805,329.69 ",NI CO OPERATION OVERSEAS NI CO LTD,Programme Spend (Oracle Projects Control Account)
FCO,FCO,16/03/2018,9519251," 800,000.00 ",UNITED NATIONS,Programme Spend (Oracle Projects Control Account)
FCO,FCO,15/03/2018,9516874," 782,225.36 ",THE SECRETARY GENERAL OF THE OSCE,Programme Spend (Oracle Projects Control Account)
FCO,FCO,13/03/2018,9512338," 768,619.00 ",HOME OFFICE,Programme Spend (Oracle Projects Control Account)
FCO,FCO,01/03/2018,9445626," 760,067.60 ",COMPUTACENTER UK LTD,IT/IS Consultancy
FCO,FCO,05/03/2018,9493272," 759,655.64 ",RISK ADVISORY GROUP PLC,Programme Spend (Oracle Projects Control Account)
FCO,FCO,26/03/2018,9535467," 749,670.12 ",GILBERT ASH LIMITED,Assets Under Construction (Oracle PA Control Account)
FCO,FCO,14/03/2018,9514056," 728,147.67 ",INCOSTRAT,Programme Spend (Oracle Projects Control Account)
FCO,FCO,07/03/2018,9498640," 721,678.55 ",GOVERNMENT OF ANGUILLA,Programme Spend (Oracle Projects Control Account)
FCO,FCO,26/03/2018,9535347," 719,115.97 ",INCOSTRAT,Programme Spend (Oracle Projects Control Account)
FCO,FCO,19/03/2018,9523114," 706,916.19 ",COMPUTACENTER UK LTD,IT/IS Consultancy
FCO,FCO,01/03/2018,9488153," 705,701.98 ",HYDROGRAPHIC OFFICE,Programme Spend (Oracle Projects Control Account)
FCO,FCO,15/03/2018,9516830," 700,000.00 ",AFRICAN UNION PEACE FUND,Programme Spend (Oracle Projects Control Account)
FCO,FCO,06/03/2018,9495398," 669,417.60 ",COMPUTACENTER UK LTD,Assets Under Construction (Oracle PA Control Account)
FCO,FCO,19/03/2018,9522094," 648,368.27 ",EXPRESS TITLE COMPANY,Assets Under Construction (Oracle PA Control Account)
FCO,FCO,27/03/2018,9538825," 638,000.00 ",FCO SERVICES,Translator Fees
FCO,FCO,28/03/2018,9541025," 620,721.31 ",RELIGARE HEALTH INSURANCE CO LTD,Staff and Other Advances AP Control (Oracle Ap Control Account)
FCO,FCO,07/03/2018,9498424," 611,800.00 ",DYNASAFE BACTEC LTD,Programme Spend (Oracle Projects Control Account)
FCO,FCO,20/03/2018,9524982," 608,343.00 ",FCO SERVICES,IT/IS Consultancy
FCO,FCO,06/03/2018,9495478," 600,000.00 ",THE ASSOCIATION OF COMMONWEALTH UNIVERSITIES,Programme Spend (Oracle Projects Control Account)
FCO,FCO,05/03/2018,9493151," 599,489.62 ",THE ROYAL BANK OF SCOTLAND,Multiple Accounts
FCO,FCO,23/03/2018,9531474," 594,211.57 ",BAE SYSTEMS APPLIED INTELLIGENCE LIMITED,Information Systems Implementation
FCO,FCO,13/03/2018,9512160," 585,543.24 ",PHOENIX DATACOM,Licences
FCO,FCO,07/03/2018,9498329," 565,962.60 ",RISK ADVISORY GROUP PLC,Programme Spend (Oracle Projects Control Account)
FCO,FCO,22/03/2018,9529270," 560,219.08 ",COMPUTACENTER UK LTD,Specialist Contractors
FCO,FCO,28/03/2018,9542129," 549,871.48 ",HYDROGRAPHIC OFFICE,Programme Spend (Oracle Projects Control Account)
FCO,FCO,21/03/2018,9527297," 544,881.25 ",G4S RISK MANAGEMENT LTD,UK Guarding Contracts Overseas
FCO,FCO,12/03/2018,9507593," 522,373.60 ",COMPUTACENTER UK LTD,Assets Under Construction (Oracle PA Control Account)
FCO,FCO,13/03/2018,9512074," 519,102.43 ",EXPRESS TITLE COMPANY,Assets Under Construction (Oracle PA Control Account)
FCO,FCO,05/03/2018,9493047," 483,967.54 ",NI CO OPERATION OVERSEAS NI CO LTD,Programme Spend (Oracle Projects Control Account)
FCO,FCO,28/03/2018,9541294," 465,391.90 ",EXPRESS TITLE COMPANY,Assets Under Construction (Oracle PA Control Account)
FCO,FCO,26/03/2018,9535355," 454,882.85 ",AKTIS STRATEGY,Programme Spend (Oracle Projects Control Account)
FCO,FCO,13/03/2018,9511841," 451,929.98 ",AXIOM INTERNATIONAL LTD,Programme Spend (Oracle Projects Control Account)
FCO,FCO,08/03/2018,9501219," 450,000.00 ",UNDP CONTRIBUTIONS,Programme Spend (Oracle Projects Control Account)
FCO,FCO,13/03/2018,9512580," 441,903.39 ",EXPRESS TITLE COMPANY,Assets Under Construction (Oracle PA Control Account)
FCO,FCO,29/03/2018,9544125," 432,169.84 ",VALARD CONSTRUCTION LP,Programme Spend (Oracle Projects Control Account)
FCO,FCO,22/03/2018,9529466," 429,564.04 ",KPMG FIDUCIAIRE,Rental Payments - non residential
FCO,FCO,21/03/2018,9527378," 426,493.95 ",CABINET OFFICE,Programme Spend (Oracle Projects Control Account)
FCO,FCO,05/03/2018,9493032," 415,575.08 ",ARK GROUP DMCC,Programme Spend (Oracle Projects Control Account)
FCO,FCO,27/03/2018,9538482," 412,000.00 ",BIOT REVENUE ACCOUNT,Programme Spend (Oracle Projects Control Account)
FCO,FCO,26/03/2018,9535629," 408,761.10 ",VODAFONE LTD CABLE AND WIRELESS UK,Telephone line and equipment rental charges
FCO,FCO,12/03/2018,9507021," 404,093.36 ",EUROPEAN CENTRE FOR MEDIUM RANGE WEATHER FORECASTS,Protocol - General VAT Refunds to Other Organisations
FCO,FCO,22/03/2018,9529386," 400,459.64 ",ARK GROUP DMCC,Programme Spend (Oracle Projects Control Account)
FCO,FCO,05/03/2018,9493277," 400,000.00 ",COFFEY INTERNATIONAL DEVELOPMENT,Programme Spend (Oracle Projects Control Account)
FCO,FCO,28/03/2018,9542078," 400,000.00 ",QUEENS UNIVERSITY BELFAST,Programme Spend (Oracle Projects Control Account)
FCO,FCO,07/03/2018,9498373," 398,238.00 ",FCO SERVICES,Information Systems Implementation
FCO,FCO,27/03/2018,9538895," 395,805.17 ",AXIOM INTERNATIONAL LTD,Programme Spend (Oracle Projects Control Account)
FCO,FCO,27/03/2018,9538551," 375,633.96 ",GOVERNMENT LEGAL DEPARTMENT,Legal Charges
FCO,FCO,27/03/2018,9539088," 374,295.00 ",DAI EUROPE LIMITED,Programme Spend (Oracle Projects Control Account)
FCO,FCO,23/03/2018,9532075," 366,582.00 ",GOVERNMENT COMMUNICATIONS BUREAU ADMIN A/C 6253,Information Systems Maintenance
FCO,FCO,28/03/2018,9541638," 365,200.00 ",CABINET OFFICE,Recruitment - Specialist
FCO,FCO,13/03/2018,9512002," 358,939.86 ",ADAM SMITH INTERNATIONAL,Programme Spend (Oracle Projects Control Account)
FCO,FCO,22/03/2018,9529842," 350,839.28 ",GOVERNMENT OF RIVERS STATE NIGERIA,Recharge Suspense Account (Oracle PA Control Account)
FCO,FCO,22/03/2018,9529519," 350,017.00 ",MOD MINISTRY OF DEFENCE,Programme Spend (Oracle Projects Control Account)
FCO,FCO,26/03/2018,9535590," 344,415.02 ",AXIOM INTERNATIONAL LTD,Programme Spend (Oracle Projects Control Account)
FCO,FCO,05/03/2018,9493237," 344,295.75 ",GOVERNMENT LEGAL DEPARTMENT,Legal Charges
FCO,FCO,14/03/2018,9514106," 329,177.23 ",ADAM SMITH INTERNATIONAL,Programme Spend (Oracle Projects Control Account)
FCO,FCO,21/03/2018,9527595," 328,902.00 ",DFID DEPT INTERNATIONAL DEVELOPMENT,Programme Spend (Oracle Projects Control Account)
FCO,FCO,13/03/2018,9512449," 327,790.40 ",AECOM,Programme Spend (Oracle Projects Control Account)
FCO,FCO,06/03/2018,9495562," 327,405.27 ",THE ASSOCIATION OF COMMONWEALTH UNIVERSITIES,Programme Spend (Oracle Projects Control Account)
FCO,FCO,19/03/2018,9523006," 326,784.33 ",AECOM,Programme Spend (Oracle Projects Control Account)
FCO,FCO,28/03/2018,9541698," 326,273.78 ",COFFEY INTERNATIONAL DEVELOPMENT,Programme Spend (Oracle Projects Control Account)
FCO,FCO,21/03/2018,9527509," 325,123.81 ",OROSTREAM INTERNATIONAL CONTRACTS LTD,Assets Under Construction (Oracle PA Control Account)
FCO,FCO,20/03/2018,9525071," 314,862.95 ",FCO SERVICES,Construction Project more than 10k
FCO,FCO,15/03/2018,9516570," 304,301.11 ",SERVEST MULTI SERVICE GROUP,Misc Security Payments
FCO,FCO,29/03/2018,9543753," 304,294.00 ",BBC MEDIA ACTION,Programme Spend (Oracle Projects Control Account)
FCO,FCO,28/03/2018,9541716," 298,613.34 ",SENSETECH SYSTEMS,Assets Under Construction (Oracle PA Control Account)
FCO,FCO,19/03/2018,9521734," 290,888.22 ",CLICKSUPER,Le Staff Pay
FCO,FCO,27/03/2018,9538665," 290,402.72 ",COFFEY INTERNATIONAL DEVELOPMENT,Programme Spend (Oracle Projects Control Account)
FCO,FCO,12/03/2018,9508317," 290,290.33 ",INTERSERVE FM LTD,Assets Under Construction (Oracle PA Control Account)
FCO,FCO,27/03/2018,9538800," 286,285.00 ",FCO SERVICES,Construction Project more than 10k
FCO,FCO,20/03/2018,9524598," 282,710.17 ",LONDON ENERGY,Electricity Non-Residential
FCO,FCO,27/03/2018,9538940," 281,308.00 ",FCO SERVICES,Assets Under Construction (Oracle PA Control Account)
FCO,FCO,01/03/2018,9488406," 280,590.51 ",VALARD CONSTRUCTION LP,Programme Spend (Oracle Projects Control Account)
FCO,FCO,27/03/2018,9538802," 277,797.08 ",FCO SERVICES,Construction Project more than 10k
FCO,FCO,20/03/2018,9524941," 275,345.12 ",THE HALO TRUST,Programme Spend (Oracle Projects Control Account)
FCO,FCO,21/03/2018,9527110," 270,432.54 ",DAI EUROPE LIMITED,Programme Spend (Oracle Projects Control Account)
FCO,FCO,20/03/2018,9525406," 268,215.83 ",MERIDIAN CONSTRUCTION COMPANY LIMITED,Programme Spend (Oracle Projects Control Account)
FCO,FCO,16/03/2018,9519038," 266,640.00 ",CRANFIELD UNIVERSITY,Programme Spend (Oracle Projects Control Account)
FCO,FCO,16/03/2018,9519153," 263,549.63 ",FCO SERVICES,Air Freight Dip Bags - Freight & Clearance Charges
FCO,FCO,29/03/2018,9543742," 260,178.37 ",COMPUTACENTER UK LTD,IT/IS Consultancy
FCO,FCO,06/03/2018,9495192," 257,952.44 ",SERVICENOW UK LTD,Licences
FCO,FCO,27/03/2018,9539081," 254,164.62 ",AXIOM INTERNATIONAL LTD,Programme Spend (Oracle Projects Control Account)
FCO,FCO,01/03/2018,9488168," 253,690.42 ",HYDROGRAPHIC OFFICE,Programme Spend (Oracle Projects Control Account)
FCO,FCO,08/03/2018,9501422," 252,484.92 ",OROSTREAM INTERNATIONAL CONTRACTS LTD,Assets Under Construction (Oracle PA Control Account)
FCO,FCO,15/03/2018,9516694," 250,000.00 ",MULTINATIONAL FORCE AND OBSERVERS,Programme Spend (Oracle Projects Control Account)
FCO,FCO,02/03/2018,9489690," 247,753.00 ",FCO SERVICES,Assets Under Construction (Oracle PA Control Account)
FCO,FCO,12/03/2018,9507598," 245,169.60 ",COMPUTACENTER UK LTD,Assets Under Construction (Oracle PA Control Account)
FCO,FCO,27/03/2018,9539007," 245,169.60 ",COMPUTACENTER UK LTD,Assets Under Construction (Oracle PA Control Account)
FCO,FCO,07/03/2018,9498907," 240,149.11 ",VALARD CONSTRUCTION LP,Programme Spend (Oracle Projects Control Account)
FCO,FCO,29/03/2018,9543735," 240,000.00 ",COMPUTACENTER UK LTD,Assets Under Construction (Oracle PA Control Account)
FCO,FCO,13/03/2018,9511989," 239,229.35 ",EUROPEAN ENDOWMENT FOR DEMOCRACY,Programme Spend (Oracle Projects Control Account)
FCO,FCO,16/03/2018,9519406," 238,782.95 ",NELSON LUXEMBOURG PROPRTY DEVLOPMT,Rental Payments - non residential
FCO,FCO,28/03/2018,9541571," 238,359.14 ",COFFEY INTERNATIONAL DEVELOPMENT,Programme Spend (Oracle Projects Control Account)
FCO,FCO,05/03/2018,9493065," 237,636.00 ",COMPUTACENTER UK LTD,Assets Under Construction (Oracle PA Control Account)
FCO,FCO,15/03/2018,9516761," 235,521.08 ",EUROPEAN MOLECULAR BIOLOGY LABORATORY,Protocol - General VAT Refunds to Other Organisations
FCO,FCO,07/03/2018,9498323," 234,975.92 ",RISK ADVISORY GROUP PLC,Programme Spend (Oracle Projects Control Account)
FCO,FCO,27/03/2018,9538649," 232,315.11 ",845 THIRD LP,Rental Payments - non residential
FCO,FCO,02/03/2018,9489472," 231,637.72 ",GOVERNMENT LEGAL DEPARTMENT,Legal Charges
FCO,FCO,28/03/2018,9541896," 231,550.32 ",UNDP MULTI PARTNER TRUST FUND OFFICE,Programme Spend (Oracle Projects Control Account)
FCO,FCO,16/03/2018,9519172," 230,773.00 ",BBC MEDIA ACTION,Programme Spend (Oracle Projects Control Account)
FCO,FCO,28/03/2018,9541917," 229,689.30 ",URSSAF,Overseas Tax And Social Security
FCO,FCO,01/03/2018,9487978," 229,058.80 ",SECURITY SERVICES GROUP,Site Maintenance
FCO,FCO,28/03/2018,9541160," 228,944.13 ",SEARCH FOR COMMON GROUND,Programme Spend (Oracle Projects Control Account)
FCO,FCO,22/03/2018,9529717," 228,930.00 ",DAI EUROPE LIMITED,Programme Spend (Oracle Projects Control Account)
FCO,FCO,08/03/2018,9501429," 224,050.17 ",GARDA WORLD LTD,UK Guarding Contracts Overseas
FCO,FCO,27/03/2018,9538586," 223,985.49 ",PLAZA TOWER LLC,Rental Payments - non residential
FCO,FCO,06/03/2018,9495507," 221,450.00 ",VODAFONE LTD,IT/IS Consultancy
FCO,FCO,12/03/2018,9507734," 220,143.00 ",FCO SERVICES,Construction Project more than 10k
FCO,FCO,27/03/2018,9538949," 219,214.18 ",FCO SERVICES,Assets Under Construction (Oracle PA Control Account)
FCO,FCO,14/03/2018,9514246," 217,770.00 ",GREENSHIELDS COWIE + CO LTD,Assets Under Construction (Oracle PA Control Account)
FCO,FCO,14/03/2018,9514197," 217,615.65 ",BRITISH COUNCIL ALGERIA,Programme Spend (Oracle Projects Control Account)
FCO,FCO,20/03/2018,9525070," 217,028.00 ",SERCO LIMITED,Programme Spend (Oracle Projects Control Account)
FCO,FCO,22/03/2018,9529714," 214,866.67 ",COMPUTACENTER UK LTD,IT/IS Consultancy
FCO,FCO,06/03/2018,9495210," 214,533.45 ",GILBERT ASH LIMITED,Assets Under Construction (Oracle PA Control Account)
FCO,FCO,23/03/2018,9531451," 209,961.99 ",OVERSEAS SUPPLY SERVICES LTD,Estates Management Services
FCO,FCO,02/03/2018,9489508," 209,198.05 ",COMPUTACENTER UK LTD,Assets Under Construction (Oracle PA Control Account)
FCO,FCO,27/03/2018,9538885," 209,115.88 ",COMPUTACENTER UK LTD,Assets Under Construction (Oracle PA Control Account)
FCO,FCO,12/03/2018,9507203," 205,742.91 ",CABINET OFFICE,Early Retirement Costs (Pre VES)
FCO,FCO,20/03/2018,9525380," 205,531.60 ",SAFERWORLD,Programme Spend (Oracle Projects Control Account)
FCO,FCO,27/03/2018,9538697," 204,615.45 ",FCO SERVICES,Assets Under Construction (Oracle PA Control Account)
FCO,FCO,21/03/2018,9527587," 203,991.54 ",DEFENCE BUSINESS SERVICES FINANCE,Mod Guarding Services Residential
FCO,FCO,12/03/2018,9507053," 203,486.62 ",DEFENCE BUSINESS SERVICES FINANCE,Mod Guarding Services Residential
FCO,FCO,27/03/2018,9538486," 203,243.03 ",SINO-US UNITED METLIFE INSURANCE COMPANY LIMITED BEIJING BRANCH,Subsidy To Local Medical Schemes
FCO,FCO,26/03/2018,9535360," 200,005.19 ",RISK ADVISORY GROUP PLC,Programme Spend (Oracle Projects Control Account)
FCO,FCO,05/03/2018,9493507," 200,000.00 ",IOM INTERNATIONAL ORG FOR MIGRATION,Programme Spend (Oracle Projects Control Account)
FCO,FCO,20/03/2018,9524573," 200,000.00 ",UNDP CONTRIBUTIONS,Programme Spend (Oracle Projects Control Account)
FCO,FCO,23/03/2018,9531407," 200,000.00 ",GOVERNMENT OF SOUTH GEORGIA AND THE SOUTH SANDWICH ISLANDS,Programme Spend (Oracle Projects Control Account)
FCO,FCO,16/03/2018,9519056," 198,735.72 ",ADAM SMITH INTERNATIONAL,Programme Spend (Oracle Projects Control Account)
FCO,FCO,15/03/2018,9516493," 198,248.13 ",FIEDLER AND RANDEL STEUERBERATER,Le Staff Pay
FCO,FCO,26/03/2018,9535599," 194,509.13 ",RISK ADVISORY GROUP PLC,Programme Spend (Oracle Projects Control Account)
FCO,FCO,09/03/2018,9503294," 181,801.77 ",RENCO,Rental Payments - non residential
FCO,FCO,09/03/2018,9503728," 180,387.99 ",CAPGEMINI UK PLC,IT/IS Consultancy
FCO,FCO,16/03/2018,9519283," 180,387.99 ",CAPGEMINI UK PLC,IT/IS Consultancy
FCO,FCO,27/03/2018,9538816," 179,665.16 ",FCO SERVICES,Travel Package
FCO,FCO,27/03/2018,9538836," 179,081.00 ",FCO SERVICES,Construction Project more than 10k
FCO,FCO,05/03/2018,9493096," 175,530.35 ",COFFEY INTERNATIONAL DEVELOPMENT,Programme Spend (Oracle Projects Control Account)
FCO,FCO,23/03/2018,9531446," 175,043.23 ",OVERSEAS SUPPLY SERVICES LTD,Estates Management Services
FCO,FCO,12/03/2018,9507104," 174,885.32 ",OROSTREAM INTERNATIONAL CONTRACTS LTD,Assets Under Construction (Oracle PA Control Account)
FCO,FCO,26/03/2018,9535478," 172,045.00 ",THECITYUK,Programme Spend (Oracle Projects Control Account)
FCO,FCO,23/03/2018,9531876," 170,665.21 ",OROSTREAM INTERNATIONAL CONTRACTS LTD,Assets Under Construction (Oracle PA Control Account)
FCO,FCO,01/03/2018,9488444," 170,373.58 ",TORCHLIGHT SOLUTIONS LTD,Programme Spend (Oracle Projects Control Account)
FCO,FCO,23/03/2018,9531589," 170,128.02 ",THE BRITISH COUNCIL,Programme Spend (Oracle Projects Control Account)
FCO,FCO,09/03/2018,9503768," 170,000.00 ",AECOM,Estates Management Services
FCO,FCO,09/03/2018,9503744," 168,000.00 ",MARSHALL AID COMMERATION COMMISSION,Programme Spend (Oracle Projects Control Account)
FCO,FCO,09/03/2018,9503876," 167,518.96 ",HENK ELSINK,Dilapidations Non-Residential
FCO,FCO,26/03/2018,9535876," 166,892.22 ",PAE WORLDWIDE INC,Programme Spend (Oracle Projects Control Account)
FCO,FCO,15/03/2018,9516553," 164,819.97 ",SERVEST MULTI SERVICE GROUP,Misc Security Payments
FCO,FCO,15/03/2018,9516556," 164,819.97 ",SERVEST MULTI SERVICE GROUP,Misc Security Payments
FCO,FCO,15/03/2018,9516567," 164,819.97 ",SERVEST MULTI SERVICE GROUP,Misc Security Payments
FCO,FCO,12/03/2018,9507622," 164,357.76 ",COMPUTACENTER UK LTD,Assets Under Construction (Oracle PA Control Account)
FCO,FCO,27/03/2018,9538873," 162,769.37 ",AECOM,Programme Spend (Oracle Projects Control Account)
FCO,FCO,26/03/2018,9535221," 162,540.00 ",SERCO LIMITED,Programme Spend (Oracle Projects Control Account)
FCO,FCO,20/03/2018,9525397," 159,511.12 ",ROYAL CAYMAN ISLANDS POLICE SERVICE,Programme Spend (Oracle Projects Control Account)
FCO,FCO,27/03/2018,9539022," 159,174.50 ",BIDWELLS,Rental Payments - non residential
FCO,FCO,14/03/2018,9514048," 159,161.76 ",AKTIS STRATEGY,Programme Spend (Oracle Projects Control Account)
FCO,FCO,27/03/2018,9538928," 158,851.87 ",FCO SERVICES,Construction Project more than 10k
FCO,FCO,22/03/2018,9529224," 158,546.22 ",FCO SERVICES,Assets Under Construction (Oracle PA Control Account)
FCO,FCO,13/03/2018,9511661," 158,424.00 ",COMPUTACENTER UK LTD,Assets Under Construction (Oracle PA Control Account)
FCO,FCO,20/03/2018,9525400," 158,399.37 ",SECUREX AGENCIES LTD,Staff and Other Advances AP Control (Oracle Ap Control Account)
FCO,FCO,08/03/2018,9501573," 157,411.47 ",VALARD CONSTRUCTION LP,Programme Spend (Oracle Projects Control Account)
FCO,FCO,20/03/2018,9525073," 157,165.00 ",SERCO LIMITED,Programme Spend (Oracle Projects Control Account)
FCO,FCO,27/03/2018,9538642," 157,100.13 ",TORRE ESPACIO CASTELLANA SAU,Rental Payments - non residential
FCO,FCO,09/03/2018,9503588," 156,371.64 ",NORTH HIGHLAND UK LTD,Specialist Contractors
FCO,FCO,17/03/2018,9520520," 155,874.30 ",BBC MEDIA ACTION,Programme Spend (Oracle Projects Control Account)
FCO,FCO,06/03/2018,9494994," 155,111.30 ",JENAN ASIA COMPANY,Construction Project more than 10k
FCO,FCO,20/03/2018,9524970," 155,000.00 ",FCO SERVICES,Information Systems Implementation
FCO,FCO,12/03/2018,9507464," 153,832.00 ",FCO SERVICES,Specialist Contractors
FCO,FCO,22/03/2018,9529203," 153,697.60 ",ADAM SMITH INTERNATIONAL,Programme Spend (Oracle Projects Control Account)
FCO,FCO,26/03/2018,9535543," 152,965.00 ",Babcock Vehicle Engineering Ltd,Assets Under Construction (Oracle PA Control Account)
FCO,FCO,07/03/2018,9498853," 151,285.93 ",EMBASSY OF BULGARIA,Rental Payments - non residential
FCO,FCO,16/03/2018,9518949," 150,829.00 ",NORTH HIGHLAND UK LTD,Specialist Contractors
FCO,FCO,27/03/2018,9539086," 150,295.00 ",DAI EUROPE LIMITED,Programme Spend (Oracle Projects Control Account)
FCO,FCO,16/03/2018,9518526," 150,010.33 ",ISS FACILITY SERVICES LTD FCO OP - POE,Rental Payments - residential
FCO,FCO,01/03/2018,9488237," 150,000.00 ",UNITED NATIONS,Programme Spend (Oracle Projects Control Account)
FCO,FCO,23/03/2018,9531797," 149,713.52 ",FCO SERVICES,Specialist Contractors
FCO,FCO,28/03/2018,9542120," 148,029.38 ",HYDROGRAPHIC OFFICE,Programme Spend (Oracle Projects Control Account)
FCO,FCO,28/03/2018,9541867," 147,468.80 ",HOME OFFICE,Programme Spend (Oracle Projects Control Account)
FCO,FCO,19/03/2018,9522355," 145,133.80 ",HOTELLINE FOR TOURISTIC INVESTMENT LTD,Rental Payments - residential
FCO,FCO,15/03/2018,9517125," 144,081.84 ",UNITED NATIONS GENERAL TRUST FUND AC,Programme Spend (Oracle Projects Control Account)
FCO,FCO,20/03/2018,9524593," 143,056.76 ",CABINET OFFICE,Programme Spend (Oracle Projects Control Account)
FCO,FCO,23/03/2018,9531971," 142,737.68 ",FCO SERVICES,Assets Under Construction (Oracle PA Control Account)
FCO,FCO,23/03/2018,9531900," 142,378.97 ",IMC WORLDWIDE LTD,Programme Spend (Oracle Projects Control Account)
FCO,FCO,26/03/2018,9535639," 140,246.78 ",VODAFONE LTD CABLE AND WIRELESS UK,Telephone line and equipment rental charges
FCO,FCO,07/03/2018,9498320," 139,756.27 ",RISK ADVISORY GROUP PLC,Programme Spend (Oracle Projects Control Account)
FCO,FCO,15/03/2018,9516477," 139,435.00 ",CABINET OFFICE,Legal Consultancy
FCO,FCO,02/03/2018,9489547," 138,857.38 ",VALARD CONSTRUCTION LP,Programme Spend (Oracle Projects Control Account)
FCO,FCO,13/03/2018,9511821," 138,835.58 ",FCO SERVICES,IT/IS Consultancy
FCO,FCO,08/03/2018,9501426," 138,439.53 ",GENERALI ESTATE SPA,Rental Payments - non residential
FCO,FCO,19/03/2018,9522941," 136,399.84 ",ARK GROUP DMCC,Programme Spend (Oracle Projects Control Account)
FCO,FCO,15/03/2018,9516717," 136,140.70 ",BBC MEDIA ACTION,Programme Spend (Oracle Projects Control Account)
FCO,FCO,26/03/2018,9535251," 135,975.23 ",DANISH REFUGEE COUNCIL,Programme Spend (Oracle Projects Control Account)
FCO,FCO,20/03/2018,9524839," 135,658.46 ",VISIT BRITAIN,Programme Spend (Oracle Projects Control Account)
FCO,FCO,13/03/2018,9511863," 135,590.00 ",FCO SERVICES,Repairs And Refurbishment: Works Residential
FCO,FCO,09/03/2018,9503756," 135,471.80 ",SECURITY SERVICES GROUP,Misc Security Payments
FCO,FCO,20/03/2018,9524951," 134,132.58 ",HENRY DUNANT CENTRE FOR HUMANITARIAN DIALOGUE,Programme Spend (Oracle Projects Control Account)
FCO,FCO,02/03/2018,9489760," 134,016.72 ",ARK GROUP DMCC,Programme Spend (Oracle Projects Control Account)
FCO,FCO,07/03/2018,9498545," 133,675.36 ",GARDA WORLD LTD,UK Mobile Guarding Contract overseas
FCO,FCO,22/03/2018,9529636," 133,113.41 ",BBC MEDIA ACTION,Programme Spend (Oracle Projects Control Account)
FCO,FCO,13/03/2018,9512019," 133,100.00 ",GILBERT ASH LIMITED,Assets Under Construction (Oracle PA Control Account)
FCO,FCO,09/03/2018,9503915," 131,335.00 ",INTERNATIONAL IDEA,Programme Spend (Oracle Projects Control Account)
FCO,FCO,29/03/2018,9544072," 130,779.00 ",IOM INTERNATIONAL ORG FOR MIGRATION,Programme Spend (Oracle Projects Control Account)
FCO,FCO,28/03/2018,9542088," 129,854.00 ",BEHAVIOURAL INSIGHTS TEAM,Programme Spend (Oracle Projects Control Account)
FCO,FCO,07/03/2018,9498906," 129,476.15 ",VALARD CONSTRUCTION LP,Programme Spend (Oracle Projects Control Account)
FCO,FCO,06/03/2018,9495578," 129,251.86 ",GOVERNORS OFFICE CAPITAL FUNDS,Programme Spend (Oracle Projects Control Account)
FCO,FCO,19/03/2018,9522744," 128,798.96 ",FINANCIERA DE DESARROLLO TERRITORIAL SA FINDETER,Programme Spend (Oracle Projects Control Account)
FCO,FCO,21/03/2018,9527257," 128,282.17 ",STRATAGEM CONSULTING,Programme Spend (Oracle Projects Control Account)
FCO,FCO,27/03/2018,9539119," 126,371.25 ",FCO SERVICES,Air Freight Dip Bags - Freight & Clearance Charges
FCO,FCO,12/03/2018,9507811," 126,326.27 ",CO WILLIAMS ELECTRICAL LTD,Programme Spend (Oracle Projects Control Account)
FCO,FCO,06/03/2018,9495270," 125,955.05 ",Optima Defence and Security Group Ltd,Recharge Suspense Account (Oracle PA Control Account)
FCO,FCO,16/03/2018,9518521," 125,348.15 ",ISS FACILITY SERVICES LTD FCO OP - POE,Multiple Accounts
FCO,FCO,06/03/2018,9495441," 125,335.46 ",LANGUAGE SERVICES DIRECT,Language Tuition: Essential
FCO,FCO,06/03/2018,9495399," 125,147.20 ",COMPUTACENTER UK LTD,Assets Under Construction (Oracle PA Control Account)
FCO,FCO,06/03/2018,9495401," 125,147.20 ",COMPUTACENTER UK LTD,Assets Under Construction (Oracle PA Control Account)
FCO,FCO,06/03/2018,9495402," 125,147.20 ",COMPUTACENTER UK LTD,Assets Under Construction (Oracle PA Control Account)
FCO,FCO,12/03/2018,9507599," 125,147.20 ",COMPUTACENTER UK LTD,Assets Under Construction (Oracle PA Control Account)
FCO,FCO,13/03/2018,9511877," 125,009.60 ",AKTIS STRATEGY,Programme Spend (Oracle Projects Control Account)
FCO,FCO,08/03/2018,9501252," 125,000.00 ",BIOT REVENUE ACCOUNT,Programme Spend (Oracle Projects Control Account)
FCO,FCO,15/03/2018,9516779," 123,224.90 ",EUROPEAN MOLECULAR BIOLOGY LABORATORY,Protocol - General VAT Refunds to Other Organisations
FCO,FCO,06/03/2018,9495405," 122,608.80 ",COMPUTACENTER UK LTD,Assets Under Construction (Oracle PA Control Account)
FCO,FCO,08/03/2018,9501551," 122,469.56 ",UNOPS,Programme Spend (Oracle Projects Control Account)
FCO,FCO,27/03/2018,9538896," 121,965.00 ",DAI EUROPE LIMITED,Programme Spend (Oracle Projects Control Account)
FCO,FCO,21/03/2018,9527254," 120,954.37 ",STRATAGEM CONSULTING,Programme Spend (Oracle Projects Control Account)
FCO,FCO,15/03/2018,9516742," 120,427.71 ",EUROPEAN BANKING AUTHORITY,Protocol - General VAT Refunds to Other Organisations
FCO,FCO,08/03/2018,9501307," 119,000.00 ",KPMG LLP,Training
FCO,FCO,13/03/2018,9511631," 118,510.00 ",FCO SERVICES,Assets Under Construction (Oracle PA Control Account)
FCO,FCO,26/03/2018,9535462," 117,580.21 ",TORCHLIGHT SOLUTIONS LTD,Programme Spend (Oracle Projects Control Account)
FCO,FCO,20/03/2018,9524927," 117,576.00 ",COFFEY INTERNATIONAL DEVELOPMENT,Programme Spend (Oracle Projects Control Account)
FCO,FCO,13/03/2018,9511866," 115,599.90 ",FCO SERVICES,Assets Under Construction (Oracle PA Control Account)
FCO,FCO,20/03/2018,9525008," 115,599.90 ",FCO SERVICES,Assets Under Construction (Oracle PA Control Account)
FCO,FCO,06/03/2018,9495314," 115,552.25 ",SERVEST MULTI SERVICE GROUP,Misc Security Payments
FCO,FCO,20/03/2018,9525141," 115,126.72 ",LONDON SCHOOL OF ECONOMICS AND POLITICAL SCIENCE,Programme Spend (Oracle Projects Control Account)
FCO,FCO,20/03/2018,9525083," 114,660.74 ",H M EXCHEQUER,CFER Payments to The Exchequer (CSC Use Only)
FCO,FCO,12/03/2018,9507808," 114,208.84 ",GOVERNORS OFFICE CAPITAL FUNDS,Programme Spend (Oracle Projects Control Account)
FCO,FCO,28/03/2018,9541890," 113,242.81 ",TEAM LEYLAND INTERNATIONAL LTD,Assets Under Construction (Oracle PA Control Account)
FCO,FCO,16/03/2018,9519152," 113,168.57 ",HOME OFFICE,Programme Spend (Oracle Projects Control Account)
FCO,FCO,16/03/2018,9518313," 112,747.37 ",Entreprise Niono SARL,Recharge Suspense Account (Oracle PA Control Account)
FCO,FCO,27/03/2018,9538760," 112,193.54 ",FCO SERVICES,Unscheduled repairs to building infrastructure
FCO,FCO,12/03/2018,9508350," 111,885.67 ",INTERSERVE FM LTD,Multiple Accounts
FCO,FCO,05/03/2018,9492685," 111,057.19 ",AFRICAN SKIES LTD,Local Guards
FCO,FCO,16/03/2018,9519042," 111,057.00 ",CRANFIELD UNIVERSITY,Programme Spend (Oracle Projects Control Account)
FCO,FCO,27/03/2018,9538690," 110,794.95 ",FCO SERVICES,IT/IS Consultancy
FCO,FCO,27/03/2018,9538735," 110,761.03 ",FCO SERVICES,Assets Under Construction (Oracle PA Control Account)
FCO,FCO,20/03/2018,9525120," 109,496.00 ",BBC MEDIA ACTION,Programme Spend (Oracle Projects Control Account)
FCO,FCO,21/03/2018,9527789," 108,103.03 ",SEGURIDAD SOCIAL,Local Staff Terminal Benefits
FCO,FCO,26/03/2018,9535135," 107,403.82 ",BUPA INTERNATIONAL,Subsidy To Local Medical Schemes
FCO,FCO,22/03/2018,9529534," 107,057.48 ",KPMG FIDUCIAIRE,Rental Payments - residential
FCO,FCO,20/03/2018,9525005," 107,000.00 ",FCO SERVICES,Repair and maintenance of furniture and fittings
FCO,FCO,23/03/2018,9531508," 107,000.00 ",INTERNATIONAL SERVICE FOR HUMAN RIGHTS,Programme Spend (Oracle Projects Control Account)
FCO,FCO,16/03/2018,9519104," 106,778.14 ",THE BRITISH COUNCIL,Programme Spend (Oracle Projects Control Account)
FCO,FCO,13/03/2018,9511815," 106,745.25 ",FCO SERVICES,IT/IS Consultancy
FCO,FCO,29/03/2018,9543585," 106,019.22 ",AKTIS STRATEGY,Programme Spend (Oracle Projects Control Account)
FCO,FCO,14/03/2018,9514321," 105,011.89 ",THE ASIA FOUNDATION,Programme Spend (Oracle Projects Control Account)
FCO,FCO,23/03/2018,9531415," 104,589.86 ",STOOF INTERNATIONAL VERTRIEBSGESELLSCHAFT MBH,Assets Under Construction (Oracle PA Control Account)
FCO,FCO,21/03/2018,9527382," 103,988.49 ",STEER DAVIES AND GLEAVE LTD,Programme Spend (Oracle Projects Control Account)
FCO,FCO,27/03/2018,9538490," 103,496.28 ",DAI EUROPE LIMITED,Programme Spend (Oracle Projects Control Account)
FCO,FCO,14/03/2018,9514102," 102,811.71 ",ALBANY ASSOCIATES,Programme Spend (Oracle Projects Control Account)
FCO,FCO,23/03/2018,9531430," 102,770.73 ",STOOF INTERNATIONAL VERTRIEBSGESELLSCHAFT MBH,Assets Under Construction (Oracle PA Control Account)
FCO,FCO,28/03/2018,9541258," 102,260.68 ",MAPFRE MSV LIFE,Rental Payments - non residential
FCO,FCO,26/03/2018,9535613," 101,892.60 ",Babcock Vehicle Engineering Ltd,Assets Under Construction (Oracle PA Control Account)
FCO,FCO,14/03/2018,9514123," 101,132.00 ",NORWEGIAN REFUGEE COUNCIL SOMALIA,Programme Spend (Oracle Projects Control Account)
FCO,FCO,27/03/2018,9538925," 101,000.00 ",FCO SERVICES,Assets Under Construction (Oracle PA Control Account)
FCO,FCO,21/03/2018,9527311," 100,395.00 ",KOIZA INTERNATIONAL LTD,"Purchase of Furniture, Fittings and Domestic Appliances"
FCO,FCO,20/03/2018,9525061," 100,300.00 ",FCO SERVICES,Assets Under Construction (Oracle PA Control Account)
FCO,FCO,17/03/2018,9520516," 100,000.00 ",Populus Limited,Research Budget
FCO,FCO,19/03/2018,9522917," 100,000.00 ",KPMG LLP,Organisation and Change Management Consultancy
FCO,FCO,20/03/2018,9524668," 100,000.00 ",THE BRITISH COUNCIL,Recharge Suspense Account (Oracle PA Control Account)
FCO,FCO,08/03/2018,9501532," 99,268.00 ",AECOM,Assets Under Construction (Oracle PA Control Account)
FCO,FCO,05/03/2018,9493227," 98,222.27 ",HEALIX INTERNATIONAL LTD,FCO Healthcare Scheme
FCO,FCO,20/03/2018,9524914," 98,050.00 ",DANISH DEMINING GROUP,Programme Spend (Oracle Projects Control Account)
FCO,FCO,23/03/2018,9531413," 97,685.50 ",STOOF INTERNATIONAL VERTRIEBSGESELLSCHAFT MBH,Assets Under Construction (Oracle PA Control Account)
FCO,FCO,23/03/2018,9531441," 97,685.50 ",STOOF INTERNATIONAL VERTRIEBSGESELLSCHAFT MBH,Assets Under Construction (Oracle PA Control Account)
FCO,FCO,16/03/2018,9519054," 97,005.71 ",CABINET OFFICE,Multiple Accounts
FCO,FCO,29/03/2018,9544076," 96,974.15 ",TORCHLIGHT SOLUTIONS LTD,Programme Spend (Oracle Projects Control Account)
FCO,FCO,15/03/2018,9516166," 96,849.11 ",ISS FACILITY SERVICES LTD FCO OP,Construction Project more than 10k
FCO,FCO,13/03/2018,9512212," 96,849.10 ",ISS FACILITY SERVICES LTD FCO OP,Construction Project more than 10k
FCO,FCO,28/03/2018,9541949," 96,390.00 ",FCO SERVICES,Assets Under Construction (Oracle PA Control Account)
FCO,FCO,01/03/2018,9487966," 96,232.09 ",TORCHLIGHT SOLUTIONS LTD,Programme Spend (Oracle Projects Control Account)
FCO,FCO,27/03/2018,9538798," 96,102.28 ",FCO SERVICES,Assets Under Construction (Oracle PA Control Account)
FCO,FCO,23/03/2018,9531433," 95,866.37 ",STOOF INTERNATIONAL VERTRIEBSGESELLSCHAFT MBH,Assets Under Construction (Oracle PA Control Account)
FCO,FCO,23/03/2018,9531434," 95,866.37 ",STOOF INTERNATIONAL VERTRIEBSGESELLSCHAFT MBH,Assets Under Construction (Oracle PA Control Account)
FCO,FCO,23/03/2018,9531436," 95,866.37 ",STOOF INTERNATIONAL VERTRIEBSGESELLSCHAFT MBH,Assets Under Construction (Oracle PA Control Account)
FCO,FCO,23/03/2018,9531437," 95,866.37 ",STOOF INTERNATIONAL VERTRIEBSGESELLSCHAFT MBH,Assets Under Construction (Oracle PA Control Account)
FCO,FCO,13/03/2018,9509827," 95,814.42 ",SHELL NIG CLOSED PENSION FUND ADMIN,Rental Payments - residential
FCO,FCO,01/03/2018,9488165," 94,973.36 ",HYDROGRAPHIC OFFICE,Programme Spend (Oracle Projects Control Account)
FCO,FCO,23/03/2018,9531691," 94,923.29 ",ALBANY ASSOCIATES,Programme Spend (Oracle Projects Control Account)
FCO,FCO,21/03/2018,9527202," 94,920.05 ",PENAL REFORM INTERNATIONAL,Programme Spend (Oracle Projects Control Account)
FCO,FCO,19/03/2018,9523034," 94,656.43 ",COMPUTACENTER UK LTD,IT/IS Consultancy
FCO,FCO,26/03/2018,9535559," 94,637.49 ",Babcock Vehicle Engineering Ltd,Assets Under Construction (Oracle PA Control Account)
FCO,FCO,12/03/2018,9508330," 94,282.54 ",INTERSERVE FM LTD,Construction Project more than 10k
FCO,FCO,01/03/2018,9488124," 94,000.00 ",ASCENSION ISLAND GOVERNMENT,Programme Spend (Oracle Projects Control Account)
FCO,FCO,22/03/2018,9529653," 93,839.03 ",EDENRED,Consolidated Volunteer Contribution
FCO,FCO,27/03/2018,9539082," 93,629.78 ",GLOBAL PARTNERS GOVERNANCE PRACTICE LTD,Programme Spend (Oracle Projects Control Account)
FCO,FCO,16/03/2018,9519051," 93,413.21 ",ADAM SMITH INTERNATIONAL,Programme Spend (Oracle Projects Control Account)
FCO,FCO,23/03/2018,9531425," 92,916.37 ",STOOF INTERNATIONAL VERTRIEBSGESELLSCHAFT MBH,Assets Under Construction (Oracle PA Control Account)
FCO,FCO,23/03/2018,9531429," 92,916.37 ",STOOF INTERNATIONAL VERTRIEBSGESELLSCHAFT MBH,Assets Under Construction (Oracle PA Control Account)
FCO,FCO,14/03/2018,9514208," 92,408.00 ",UKRAINIAN NETWORK OF PLWH,Programme Spend (Oracle Projects Control Account)
FCO,FCO,15/03/2018,9516424," 92,395.13 ",COFFEY INTERNATIONAL DEVELOPMENT,Programme Spend (Oracle Projects Control Account)
FCO,FCO,26/03/2018,9535560," 92,389.49 ",Babcock Vehicle Engineering Ltd,Assets Under Construction (Oracle PA Control Account)
FCO,FCO,28/03/2018,9541198," 92,000.00 ",ANR MINING AND CONSTRUCTION,Rental Payments - residential
FCO,FCO,12/03/2018,9507047," 91,981.06 ",AEGIS DEFENCE SERVICES LTD,Multiple Accounts
FCO,FCO,23/03/2018,9531776," 91,824.00 ",PRICEWATERHOUSE COOPERS LLP,Specialist Contractors
FCO,FCO,08/03/2018,9501328," 91,535.23 ",JANKEL ARMOURING LTD,Assets Under Construction (Oracle PA Control Account)
FCO,FCO,13/03/2018,9512168," 91,520.00 ",IBM UNITED KINGDOM LTD,Assets Under Construction (Oracle PA Control Account)
FCO,FCO,26/03/2018,9535469," 90,681.69 ",HENRY DUNANT CENTRE FOR HUMANITARIAN DIALOGUE,Programme Spend (Oracle Projects Control Account)
FCO,FCO,19/03/2018,9522869," 90,026.00 ",DIPLOMATIC MISSION SUPPLIES LTD,Property Maintenance Overseas Non Residential
FCO,FCO,26/03/2018,9535547," 89,747.09 ",Babcock Vehicle Engineering Ltd,Assets Under Construction (Oracle PA Control Account)
FCO,FCO,23/03/2018,9531488," 89,474.76 ",BAE SYSTEMS APPLIED INTELLIGENCE LIMITED,Information Systems Maintenance
FCO,FCO,19/03/2018,9522789," 88,991.43 ",CORPORACION ANDINA DE FOMENTO,Programme Spend (Oracle Projects Control Account)
FCO,FCO,27/03/2018,9538944," 88,874.71 ",STEER DAVIES AND GLEAVE LTD,Programme Spend (Oracle Projects Control Account)
FCO,FCO,23/03/2018,9531719," 88,593.27 ",C230 CONSULTORES SC,Programme Spend (Oracle Projects Control Account)
FCO,FCO,01/03/2018,9488316," 87,764.05 ",IOM INTERNATIONAL ORG FOR MIGRATION,Programme Spend (Oracle Projects Control Account)
FCO,FCO,09/03/2018,9503740," 87,374.55 ",SECURITY SERVICES GROUP,Misc Security Payments
FCO,FCO,07/03/2018,9498893," 86,948.33 ",GOVERNORS OFFICE CAPITAL FUNDS,Programme Spend (Oracle Projects Control Account)
FCO,FCO,28/03/2018,9541801," 86,916.20 ",NORTH HIGHLAND UK LTD,Specialist Contractors
FCO,FCO,23/03/2018,9531974," 86,620.00 ",FCO SERVICES,Multiple Accounts
FCO,FCO,16/03/2018,9518524," 86,339.41 ",ISS FACILITY SERVICES LTD FCO OP - POE,Multiple Accounts
FCO,FCO,26/03/2018,9535544," 86,293.49 ",Babcock Vehicle Engineering Ltd,Assets Under Construction (Oracle PA Control Account)
FCO,FCO,26/03/2018,9535546," 86,293.49 ",Babcock Vehicle Engineering Ltd,Assets Under Construction (Oracle PA Control Account)
FCO,FCO,01/03/2018,9488346," 85,989.59 ",IOM INTERNATIONAL ORG FOR MIGRATION,Programme Spend (Oracle Projects Control Account)
FCO,FCO,06/03/2018,9495394," 85,852.00 ",COMPUTACENTER UK LTD,Assets Under Construction (Oracle PA Control Account)
FCO,FCO,27/03/2018,9538746," 85,697.56 ",FCO SERVICES,GH/VIP Grant in Aid
FCO,FCO,20/03/2018,9525077," 85,644.15 ",KOIZA INTERNATIONAL LTD,"Purchase of Furniture, Fittings and Domestic Appliances"
FCO,FCO,20/03/2018,9524939," 85,603.00 ",PEACEFUL CHANGE INITIATIVE,Programme Spend (Oracle Projects Control Account)
FCO,FCO,23/03/2018,9531694," 85,479.04 ",ALBANY ASSOCIATES,Programme Spend (Oracle Projects Control Account)
FCO,FCO,23/03/2018,9531811," 85,394.93 ",ADAM SMITH INTERNATIONAL,Programme Spend (Oracle Projects Control Account)
FCO,FCO,16/03/2018,9518530," 85,337.29 ",ISS FACILITY SERVICES LTD FCO OP - POE,Rental Payments - residential
FCO,FCO,28/03/2018,9542054," 85,181.73 ",PRICEWATERHOUSE COOPERS LLP,Programme Spend (Oracle Projects Control Account)
FCO,FCO,02/03/2018,9489483," 85,104.75 ",COMPUTACENTER UK LTD,Assets Under Construction (Oracle PA Control Account)
FCO,FCO,29/03/2018,9543744," 84,518.31 ",CABINET OFFICE,Programme Spend (Oracle Projects Control Account)
FCO,FCO,26/03/2018,9535539," 84,053.69 ",Babcock Vehicle Engineering Ltd,Assets Under Construction (Oracle PA Control Account)
FCO,FCO,22/03/2018,9529268," 83,961.55 ",STEER DAVIES AND GLEAVE MEXICO,Programme Spend (Oracle Projects Control Account)
FCO,FCO,05/03/2018,9493137," 83,714.65 ",GILBERT ASH LIMITED,Assets Under Construction (Oracle PA Control Account)
FCO,FCO,08/03/2018,9501582," 83,292.28 ",SERVEST MULTI SERVICE GROUP,Misc Security Payments
FCO,FCO,13/03/2018,9510558," 83,247.33 ",IRT LOCAL STAFF,Multiple Accounts
FCO,FCO,06/03/2018,9495452," 83,227.85 ",LANGUAGE SERVICES DIRECT,Language Tuition: Essential
FCO,FCO,21/03/2018,9527314," 82,933.02 ",FCO SERVICES,Assets Under Construction (Oracle PA Control Account)
FCO,FCO,21/03/2018,9527294," 82,916.24 ",FCO SERVICES,Security: Works Non-Residential
FCO,FCO,13/03/2018,9511913," 82,500.00 ",THE POLICY PRACTICE,Programme Spend (Oracle Projects Control Account)
FCO,FCO,16/03/2018,9519139," 82,495.03 ",ADP,Le Staff Pay
FCO,FCO,20/03/2018,9525204," 82,300.00 ",ANR MINING AND CONSTRUCTION,Property Maintenance Overseas Residential
FCO,FCO,07/03/2018,9498324," 82,167.43 ",RISK ADVISORY GROUP PLC,Programme Spend (Oracle Projects Control Account)
FCO,FCO,28/03/2018,9541873," 82,003.72 ",GOVERNORS OFFICE CAPITAL FUNDS,Programme Spend (Oracle Projects Control Account)
FCO,FCO,20/03/2018,9525116," 81,610.70 ",COFFEY INTERNATIONAL DEVELOPMENT,Programme Spend (Oracle Projects Control Account)
FCO,FCO,13/03/2018,9511943," 81,000.00 ",IIZUKA,Assets Under Construction (Oracle PA Control Account)
FCO,FCO,29/03/2018,9543724," 80,930.67 ",HM TREASURY,Programme Spend (Oracle Projects Control Account)
FCO,FCO,07/03/2018,9498855," 80,214.72 ",ADP,Le Staff Pay
FCO,FCO,22/03/2018,9529192," 80,160.30 ",FCO SERVICES,Repairs And Refurbishment: Works Residential
FCO,FCO,27/03/2018,9538999," 80,150.00 ",A.Y.Morton & Co Ltd,Programme Spend (Oracle Projects Control Account)
FCO,FCO,08/03/2018,9501580," 79,922.96 ",SERVEST MULTI SERVICE GROUP,Misc Security Payments
FCO,FCO,21/03/2018,9527243," 79,785.70 ",SAFERWORLD,Programme Spend (Oracle Projects Control Account)
FCO,FCO,09/03/2018,9503696," 79,776.67 ",ITAD LTD,Programme Spend (Oracle Projects Control Account)
FCO,FCO,06/03/2018,9495201," 79,740.00 ",POWER ELECTRICS GENERATORS LTD,Assets Under Construction (Oracle PA Control Account)
FCO,FCO,16/03/2018,9519176," 79,540.00 ",WILTON PARK EXECUTIVE AGENCY,Programme Spend (Oracle Projects Control Account)
FCO,FCO,29/03/2018,9543726," 79,360.18 ",NI CO OPERATION OVERSEAS NI CO LTD,Programme Spend (Oracle Projects Control Account)
FCO,FCO,15/03/2018,9516965," 79,143.82 ",PALLADIUM,Programme Spend (Oracle Projects Control Account)
FCO,FCO,20/03/2018,9524925," 79,025.00 ",BRITISH COUNCIL MYANMAR,Programme Spend (Oracle Projects Control Account)
FCO,FCO,05/03/2018,9493162," 78,717.40 ",ABROTEA BULGARIA AD,Rental Payments - non residential
FCO,FCO,19/03/2018,9521729," 78,454.45 ",FISCAL CRIME LIAISON OFFICE,Recharge Suspense Account (Oracle PA Control Account)
FCO,FCO,15/03/2018,9516768," 78,363.00 ",EUROPEAN BANK FOR RECONSTRUCTION AND DEVELOPMENT,Protocol - Refund of Insurance Premium Tax to Other Organisations
FCO,FCO,27/03/2018,9539002," 78,336.00 ",BIDWELLS,Rental Payments - non residential
FCO,FCO,12/03/2018,9508312," 78,157.40 ",INTERSERVE FM LTD,Construction Project more than 10k
FCO,FCO,20/03/2018,9524752," 78,046.29 ",GOVERNORS OFFICE CAPITAL FUNDS,Programme Spend (Oracle Projects Control Account)
FCO,FCO,23/03/2018,9531826," 78,000.00 ",FCO SERVICES,IT/IS Consultancy
FCO,FCO,14/03/2018,9514282," 77,910.12 ",AXIOM INTERNATIONAL LTD,Programme Spend (Oracle Projects Control Account)
FCO,FCO,21/03/2018,9527575," 77,897.82 ",ADAM SMITH INTERNATIONAL,Programme Spend (Oracle Projects Control Account)
FCO,FCO,20/03/2018,9524680," 77,676.00 ",CARNEGIE ENDOWNMENT FOR INTERNATIONAL PEACE,Programme Spend (Oracle Projects Control Account)
FCO,FCO,16/03/2018,9518488," 77,531.16 ",WEPRO,Recharge Suspense Account (Oracle PA Control Account)
FCO,FCO,16/03/2018,9519422," 77,493.58 ",MINIMAL RISK CONSULTANCY LTD,UK Guarding Contracts Overseas
FCO,FCO,15/03/2018,9516527," 77,049.99 ",FCO SERVICES,Assets Under Construction (Oracle PA Control Account)
FCO,FCO,12/03/2018,9507730," 76,910.00 ",FCO SERVICES,Construction Project more than 10k
FCO,FCO,20/03/2018,9525026," 76,766.10 ",FCO SERVICES,Assets Under Construction (Oracle PA Control Account)
FCO,FCO,07/03/2018,9498297," 76,696.08 ",MINIMAL RISK CONSULTANCY LTD,UK Guarding Contracts Overseas
FCO,FCO,16/03/2018,9519093," 76,597.01 ",THE BRITISH COUNCIL,Programme Spend (Oracle Projects Control Account)
FCO,FCO,01/03/2018,9488118," 76,218.00 ",FCO SERVICES,Assets Under Construction (Oracle PA Control Account)
FCO,FCO,06/03/2018,9495589," 76,000.00 ",UNITED NATIONS,Programme Spend (Oracle Projects Control Account)
FCO,FCO,19/03/2018,9523072," 75,825.00 ",DIPLOMATIC MISSION SUPPLIES LTD,"Purchase of Furniture, Fittings and Domestic Appliances"
FCO,FCO,01/03/2018,9488036," 75,588.00 ",DIPLOMATIC MISSION SUPPLIES LTD,Health And Safety
FCO,FCO,15/03/2018,9516777," 75,515.52 ",INTERNATIONAL FINANCE CORPORATION,Protocol - General VAT Refunds to Other Organisations
FCO,FCO,22/03/2018,9529212," 75,189.50 ","CROSS MATCH TECHNOLOGIES, INC.",Programme Spend (Oracle Projects Control Account)
FCO,FCO,08/03/2018,9501297," 75,000.00 ",ACTIONAID MYANMAR,Programme Spend (Oracle Projects Control Account)
FCO,FCO,21/03/2018,9527235," 75,000.00 ",UNITED NATIONS,Programme Spend (Oracle Projects Control Account)
FCO,FCO,12/03/2018,9507209," 74,989.23 ",STRATAGEM CONSULTING,Programme Spend (Oracle Projects Control Account)
FCO,FCO,05/03/2018,9493231," 74,817.50 ",KINDRED AGENCY LTD,Public Relations
FCO,FCO,19/03/2018,9522786," 74,550.10 ",CORPORACION ANDINA DE FOMENTO,Programme Spend (Oracle Projects Control Account)
FCO,FCO,01/03/2018,9488097," 73,514.94 ",COMPUTACENTER UK LTD,Assets Under Construction (Oracle PA Control Account)
FCO,FCO,27/03/2018,9538890," 73,420.00 ",COMPUTACENTER UK LTD,Assets Under Construction (Oracle PA Control Account)
FCO,FCO,15/03/2018,9516809," 73,000.00 ",WILTON PARK EXECUTIVE AGENCY,Programme Spend (Oracle Projects Control Account)
FCO,FCO,27/03/2018,9538930," 72,499.00 ",FCO SERVICES,Assets Under Construction (Oracle PA Control Account)
FCO,FCO,08/03/2018,9501346," 72,327.55 ",COMPUTACENTER UK LTD,Assets Under Construction (Oracle PA Control Account)
FCO,FCO,07/03/2018,9498325," 71,928.00 ",TRANSPARENCY INTERNATIONAL,Programme Spend (Oracle Projects Control Account)
FCO,FCO,19/03/2018,9523031," 71,875.00 ",COMPUTACENTER UK LTD,IT/IS Consultancy
FCO,FCO,15/03/2018,9516627," 71,528.41 ",WESTMINSTER FOUNDATION FOR DEMOCRACY,Programme Spend (Oracle Projects Control Account)
FCO,FCO,16/03/2018,9519417," 70,233.00 ",DEFENCE BUSINESS SERVICES FINANCE,Misc Security Payments
FCO,FCO,13/03/2018,9512429," 70,194.37 ",VOYA FINANCIAL,Local Staff Pension Contributions
FCO,FCO,28/03/2018,9541693," 70,000.00 ",EUROPEAN ENDOWMENT FOR DEMOCRACY,Programme Spend (Oracle Projects Control Account)
FCO,FCO,01/03/2018,9487952," 69,946.72 ",LHASSA CONSULTING FZE,Programme Spend (Oracle Projects Control Account)
FCO,FCO,21/03/2018,9527180," 69,944.20 ",ALLERGY COSMOS,Property Maintenance Overseas Non Residential
FCO,FCO,23/03/2018,9531843," 69,833.00 ",IMPACT INITIATIVES,Programme Spend (Oracle Projects Control Account)
FCO,FCO,08/03/2018,9501385," 69,108.08 ",AKTIS STRATEGY,Programme Spend (Oracle Projects Control Account)
FCO,FCO,23/03/2018,9531942," 68,814.00 ",FCO SERVICES,Estates Management Services
FCO,FCO,13/03/2018,9511945," 67,958.80 ",BAE SYSTEMS APPLIED INTELLIGENCE LIMITED,IT/IS Consultancy
FCO,FCO,22/03/2018,9529767," 67,955.50 ",WSS ENERGY CONSULTING LTD,Programme Spend (Oracle Projects Control Account)
FCO,FCO,13/03/2018,9511693," 67,661.78 ",FCO SERVICES,Information Systems Implementation
FCO,FCO,26/03/2018,9535359," 67,659.49 ",GLOBAL PARTNERS GOVERNANCE PRACTICE LTD,Programme Spend (Oracle Projects Control Account)
FCO,FCO,21/03/2018,9526720," 67,558.44 ",INTERACTIVE SOLUTIONS,Recharge Suspense Account (Oracle PA Control Account)
FCO,FCO,05/03/2018,9493236," 67,443.36 ",PILGRIMS GROUP LTD,Programme Spend (Oracle Projects Control Account)
FCO,FCO,07/03/2018,9498485," 67,222.40 ",AECOM,Programme Spend (Oracle Projects Control Account)
FCO,FCO,02/03/2018,9489489," 67,179.25 ",ARK GROUP DMCC,Programme Spend (Oracle Projects Control Account)
FCO,FCO,05/03/2018,9492671," 66,858.42 ",KBR,Catering Services
FCO,FCO,16/03/2018,9519062," 66,640.00 ",ADAM SMITH INTERNATIONAL,Programme Spend (Oracle Projects Control Account)
FCO,FCO,14/03/2018,9514268," 66,518.68 ",BBC MEDIA ACTION,Programme Spend (Oracle Projects Control Account)
FCO,FCO,28/03/2018,9541766," 66,433.40 ",LAW ENFORCEMENT INTERNATIONAL LTD,Programme Spend (Oracle Projects Control Account)
FCO,FCO,20/03/2018,9524946," 66,252.50 ",FCO SERVICES,Information Systems Implementation
FCO,FCO,08/03/2018,9501566," 66,212.81 ",TSI DISTRIBUTOR LLC,Programme Spend (Oracle Projects Control Account)
FCO,FCO,16/03/2018,9518538," 66,138.58 ",ISS FACILITY SERVICES LTD FCO OP - POE,Rental Payments - non residential
FCO,FCO,23/03/2018,9531494," 66,037.57 ",INTEGRITY RESEARCH AND CONSULTANCY LTD,Programme Spend (Oracle Projects Control Account)
FCO,FCO,19/03/2018,9522870," 65,944.32 ",MAYORS OFFICE FOR POLICING AND CRIME MOPC,Programme Spend (Oracle Projects Control Account)
FCO,FCO,08/03/2018,9501362," 65,677.62 ",DAI EUROPE LIMITED,Programme Spend (Oracle Projects Control Account)
FCO,FCO,27/03/2018,9538921," 65,607.00 ",FCO SERVICES,Assets Under Construction (Oracle PA Control Account)
FCO,FCO,12/03/2018,9507026," 65,582.14 ",THE WORLD BANK,Protocol - General VAT Refunds to Other Organisations
FCO,FCO,12/03/2018,9507111," 65,317.24 ",COMPUTACENTER UK LTD,Information Systems Under 3000 (non-capitalised)
FCO,FCO,29/03/2018,9544103," 65,316.17 ",THE BRITISH COUNCIL,Programme Spend (Oracle Projects Control Account)
FCO,FCO,20/03/2018,9525007," 65,273.56 ",FCO SERVICES,Air Freight Dip Bags - Freight & Clearance Charges
FCO,FCO,26/03/2018,9535417," 65,000.00 ",TORCHLIGHT SOLUTIONS LTD,Programme Spend (Oracle Projects Control Account)
FCO,FCO,27/03/2018,9538299," 64,800.00 ",LEK CONSULTING,Programme Spend (Oracle Projects Control Account)
FCO,FCO,14/03/2018,9514310," 64,786.00 ",MEDAFCO DEVELOPPEMENT,Programme Spend (Oracle Projects Control Account)
FCO,FCO,06/03/2018,9495293," 64,761.32 ",COMPUTACENTER UK LTD,IT/IS Consultancy
FCO,FCO,12/03/2018,9507107," 64,730.00 ",FOUNDATION HIRONDELLE,Programme Spend (Oracle Projects Control Account)
FCO,FCO,27/03/2018,9538912," 64,696.20 ",AXIOM INTERNATIONAL LTD,Programme Spend (Oracle Projects Control Account)
FCO,FCO,14/03/2018,9514100," 64,691.61 ",ALBANY ASSOCIATES,Programme Spend (Oracle Projects Control Account)
FCO,FCO,20/03/2018,9525366," 64,649.43 ",TORCHLIGHT SOLUTIONS LTD,Programme Spend (Oracle Projects Control Account)
FCO,FCO,22/03/2018,9529422," 64,565.00 ",COMPUTACENTER UK LTD,Assets Under Construction (Oracle PA Control Account)
FCO,FCO,23/03/2018,9531485," 64,533.00 ",BAE SYSTEMS APPLIED INTELLIGENCE LIMITED,Information Systems Maintenance
FCO,FCO,19/03/2018,9523030," 64,228.00 ",COMPUTACENTER UK LTD,IT/IS Consultancy
FCO,FCO,20/03/2018,9525144," 64,177.50 ",CROWN COMMERCIAL SERVICE,Specialist Contractors
FCO,FCO,13/03/2018,9511855," 63,992.86 ",AXIOM INTERNATIONAL LTD,Programme Spend (Oracle Projects Control Account)
FCO,FCO,27/03/2018,9539075," 63,977.00 ",WILTON PARK EXECUTIVE AGENCY,Programme Spend (Oracle Projects Control Account)
FCO,FCO,26/03/2018,9535857," 63,926.57 ",THE SHAIKH GROUP,Programme Spend (Oracle Projects Control Account)
FCO,FCO,27/03/2018,9538952," 63,729.37 ",FCO SERVICES,Multiple Accounts
FCO,FCO,20/03/2018,9525089," 63,633.31 ",KOIZA INTERNATIONAL LTD,"Purchase of Furniture, Fittings and Domestic Appliances"
FCO,FCO,05/03/2018,9493126," 63,500.00 ",AECOM,Programme Spend (Oracle Projects Control Account)
FCO,FCO,15/03/2018,9516505," 63,143.75 ",FCO SERVICES,Misc Expenditure (only to be used if no other suitable account)
FCO,FCO,07/03/2018,9498603," 63,000.00 ",JORDAN SCU,Programme Spend (Oracle Projects Control Account)
FCO,FCO,07/03/2018,9498412," 62,926.00 ",MOD MINISTRY OF DEFENCE,Programme Spend (Oracle Projects Control Account)
FCO,FCO,26/03/2018,9535377," 62,888.72 ",ADAM SMITH INTERNATIONAL,Programme Spend (Oracle Projects Control Account)
FCO,FCO,27/03/2018,9538946," 62,711.15 ",FCO SERVICES,Assets Under Construction (Oracle PA Control Account)
FCO,FCO,19/03/2018,9522823," 62,545.00 ",KPMG LLP,Training Courses
FCO,FCO,16/03/2018,9518977," 62,382.30 ",OXFAM BRASIL,Programme Spend (Oracle Projects Control Account)
FCO,FCO,28/03/2018,9542114," 62,267.01 ",HUMANIS,Overseas Tax And Social Security
FCO,FCO,12/03/2018,9508314," 62,151.59 ",INTERSERVE FM LTD,Construction Project more than 10k
FCO,FCO,20/03/2018,9524600," 61,927.97 ",DIPLOMATIC MISSION SUPPLIES LTD,"Purchase of Furniture, Fittings and Domestic Appliances"
FCO,FCO,12/03/2018,9508308," 61,712.17 ",INTERSERVE FM LTD,FM Interserve Estate Management Services
FCO,FCO,12/03/2018,9508316," 61,410.89 ",INTERSERVE FM LTD,Assets Under Construction (Oracle PA Control Account)
FCO,FCO,13/03/2018,9511865," 61,396.47 ",SEARCH FOR COMMON GROUND,Programme Spend (Oracle Projects Control Account)
FCO,FCO,01/03/2018,9488318," 61,000.47 ",IOM INTERNATIONAL ORG FOR MIGRATION,Programme Spend (Oracle Projects Control Account)
FCO,FCO,12/03/2018,9507058," 60,979.28 ",KOIZA INTERNATIONAL LTD,"Purchase of Furniture, Fittings and Domestic Appliances"
FCO,FCO,15/03/2018,9516908," 60,035.83 ",COSMOS BUSINESS SYSTEMS S A,Recharge Suspense Account (Oracle PA Control Account)
FCO,FCO,06/03/2018,9495386," 59,919.59 ",COMPUTACENTER UK LTD,Information Systems Maintenance
FCO,FCO,21/03/2018,9527687," 59,689.50 ",HANDICAP INTERNATIONAL UK,Programme Spend (Oracle Projects Control Account)
FCO,FCO,28/03/2018,9541985," 59,442.77 ",FCO SERVICES,Assets Under Construction (Oracle PA Control Account)
FCO,FCO,20/03/2018,9524994," 59,385.46 ",FCO SERVICES,Construction Project more than 10k
FCO,FCO,16/03/2018,9519150," 59,374.87 ",FCO SERVICES,Air Freight Dip Bags - Freight & Clearance Charges
FCO,FCO,05/03/2018,9493127," 59,000.00 ",AECOM,Programme Spend (Oracle Projects Control Account)
FCO,FCO,21/03/2018,9527164," 59,000.00 ",UNITED NATIONS POPULATION FUND,Programme Spend (Oracle Projects Control Account)
FCO,FCO,12/03/2018,9506986," 58,870.00 ",TORCHLIGHT SOLUTIONS LTD,Programme Spend (Oracle Projects Control Account)
FCO,FCO,27/03/2018,9539052," 58,759.29 ",INSTITUTE FOR WAR AND PEACE REPORTING IWPR,Programme Spend (Oracle Projects Control Account)
FCO,FCO,14/03/2018,9514364," 58,617.00 ",NATIONAL DEMOCRATIC INSTITUTE,Programme Spend (Oracle Projects Control Account)
FCO,FCO,20/03/2018,9525424," 58,565.00 ",LAPIS MIDDLE EAST AND AFRICA FZ LLC,Programme Spend (Oracle Projects Control Account)
FCO,FCO,05/03/2018,9493134," 58,478.49 ",ALBANY ASSOCIATES,Programme Spend (Oracle Projects Control Account)
FCO,FCO,01/03/2018,9487520," 58,377.41 ",TACTICAL PRO TRADING LDA,Programme Spend (Oracle Projects Control Account)
FCO,FCO,22/03/2018,9529770," 57,870.64 ",ROBERT GORDON UNIVERSITY,Programme Spend (Oracle Projects Control Account)
FCO,FCO,15/03/2018,9516949," 57,674.57 ",SYNERGY FOR JUSTICE LTD,Programme Spend (Oracle Projects Control Account)
FCO,FCO,28/03/2018,9541977," 57,446.09 ",FCO SERVICES,Assets Under Construction (Oracle PA Control Account)
FCO,FCO,19/03/2018,9522209," 57,314.98 ",CENTRE FOR EUROPEAN PERSPECTIVE,Programme Spend (Oracle Projects Control Account)
FCO,FCO,06/03/2018,9495390," 57,171.52 ",COMPUTACENTER UK LTD,Specialist Contractors
FCO,FCO,02/03/2018,9489683," 56,888.00 ",FCO SERVICES,Assets Under Construction (Oracle PA Control Account)
FCO,FCO,16/03/2018,9519420," 56,846.64 ",ARK GROUP DMCC,Programme Spend (Oracle Projects Control Account)
FCO,FCO,14/03/2018,9514306," 56,796.00 ",PENAL REFORM INTERNATIONAL,Programme Spend (Oracle Projects Control Account)
FCO,FCO,28/03/2018,9541739," 56,792.00 ",KPMG LLP,Training Courses
FCO,FCO,16/03/2018,9518812," 56,689.98 ",CABINET OFFICE,Representation of the FCO
FCO,FCO,23/03/2018,9532103," 56,627.17 ",GOVERNORS OFFICE CAPITAL FUNDS,Programme Spend (Oracle Projects Control Account)
FCO,FCO,15/03/2018,9516724," 56,465.26 ",GLOBAL PARTNERS GOVERNANCE PRACTICE LTD,Programme Spend (Oracle Projects Control Account)
FCO,FCO,14/03/2018,9514300," 56,403.16 ",AXIOM INTERNATIONAL LTD,Programme Spend (Oracle Projects Control Account)
FCO,FCO,26/03/2018,9535871," 56,145.08 ",ALCIS HOLDINGS LTD,Programme Spend (Oracle Projects Control Account)
FCO,FCO,02/03/2018,9489805," 55,983.35 ",CRANFIELD UNIVERSITY,Programme Spend (Oracle Projects Control Account)
FCO,FCO,27/03/2018,9538923," 55,888.00 ",FCO SERVICES,Assets Under Construction (Oracle PA Control Account)
FCO,FCO,23/03/2018,9531819," 55,790.00 ",FCO SERVICES,Technical Supplies (Maint)
FCO,FCO,29/03/2018,9544114," 55,409.82 ",ARTEOS GP LIMITED AND CO KG,Multiple Accounts
FCO,FCO,26/03/2018,9535367," 55,115.27 ",BIOT REVENUE ACCOUNT,Programme Spend (Oracle Projects Control Account)
FCO,FCO,27/03/2018,9538739," 55,000.00 ",FCO SERVICES,Misc Expenditure (only to be used if no other suitable account)
FCO,FCO,15/03/2018,9516906," 54,796.33 ",COSMOS BUSINESS SYSTEMS S A,Recharge Suspense Account (Oracle PA Control Account)
FCO,FCO,23/03/2018,9531578," 54,746.56 ",CRANFIELD UNIVERSITY,Programme Spend (Oracle Projects Control Account)
FCO,FCO,19/03/2018,9522167," 54,317.65 ",HEATHROW TRAVEL CARE,Human Rights : Assistance Policy
FCO,FCO,16/03/2018,9518537," 54,218.81 ",ISS FACILITY SERVICES LTD FCO OP - POE,Multiple Accounts
FCO,FCO,02/03/2018,9489650," 54,143.88 ",ARTEOS GP LIMITED AND CO KG,Multiple Accounts
FCO,FCO,28/03/2018,9541970," 54,065.24 ",FCO SERVICES,Assets Under Construction (Oracle PA Control Account)
FCO,FCO,12/03/2018,9507661," 54,030.69 ",IMAGINATION THE AMERICAS INC,Programme Spend (Oracle Projects Control Account)
FCO,FCO,16/03/2018,9518002," 54,024.60 ",NATIONAL HEALTH INSURACE CO DAMAN,Medical Supplies
FCO,FCO,01/03/2018,9487894," 54,009.49 ",SAFERWORLD,Programme Spend (Oracle Projects Control Account)
FCO,FCO,12/03/2018,9506063," 53,741.14 ",CHP CASHBOX TOP UP,Inter Account Transfer (Cash in Transit)
FCO,FCO,19/03/2018,9522067," 53,733.16 ",HARIS ENTERPRISES PVT LTD,Local Guards
FCO,FCO,23/03/2018,9531809," 53,475.00 ",FCO SERVICES,Specialist Contractors
FCO,FCO,15/03/2018,9516612," 53,329.20 ",BAE SYSTEMS APPLIED INTELLIGENCE LIMITED,Information Systems Maintenance
FCO,FCO,29/03/2018,9544082," 53,329.20 ",BAE SYSTEMS APPLIED INTELLIGENCE LIMITED,Information Systems Maintenance
FCO,FCO,23/03/2018,9531681," 52,915.58 ",SEARCH FOR COMMON GROUND,Programme Spend (Oracle Projects Control Account)
FCO,FCO,05/03/2018,9493180," 52,892.07 ",HEALIX INTERNATIONAL LTD,Hospital/Specialist Treatment
FCO,FCO,13/03/2018,9511789," 52,802.54 ",FCO SERVICES,Assets Under Construction (Oracle PA Control Account)
FCO,FCO,09/03/2018,9504025," 52,702.85 ",THE GLOBAL INITIATIVE AGAINST TRANSNATIONAL ORGANIZED CRIME,Programme Spend (Oracle Projects Control Account)
FCO,FCO,06/03/2018,9495302," 52,648.11 ",COMPUTACENTER UK LTD,IT/IS Consultancy
FCO,FCO,19/03/2018,9523036," 52,630.16 ",COMPUTACENTER UK LTD,IT/IS Consultancy
FCO,FCO,09/03/2018,9503906," 52,571.12 ",INTERSERVE FM LTD,Assets Under Construction (Oracle PA Control Account)
FCO,FCO,23/03/2018,9532080," 52,321.94 ",VALARD CONSTRUCTION LP,Programme Spend (Oracle Projects Control Account)
FCO,FCO,15/03/2018,9516550," 52,210.55 ",PRAWA,Programme Spend (Oracle Projects Control Account)
FCO,FCO,23/03/2018,9531805," 52,194.99 ",KOIZA INTERNATIONAL LTD,Programme Spend (Oracle Projects Control Account)
FCO,FCO,01/03/2018,9487902," 52,012.00 ",IISS - INTERNATIONAL INSTITUTE FOR STRATEGIC STUDIES,Programme Spend (Oracle Projects Control Account)
FCO,FCO,23/03/2018,9531844," 52,000.00 ",FCO SERVICES,IT/IS Consultancy
FCO,FCO,20/03/2018,9525115," 51,767.87 ",INTERNATIONAL ALERT,Programme Spend (Oracle Projects Control Account)
FCO,FCO,07/03/2018,9498094," 51,753.15 ",ECORYS GROUP UK,Programme Spend (Oracle Projects Control Account)
FCO,FCO,06/03/2018,9495218," 51,532.34 ",UKRAINE NGO FORUM,Programme Spend (Oracle Projects Control Account)
FCO,FCO,28/03/2018,9541993," 51,480.89 ",AETNA,Subsidy To Local Medical Schemes
FCO,FCO,20/03/2018,9525184," 51,340.62 ",DIPLOMATIC MISSION SUPPLIES LTD,"Purchase of Furniture, Fittings and Domestic Appliances"
FCO,FCO,09/03/2018,9503416," 51,111.43 ",THE ROYAL BANK OF SCOTLAND,Accommodation
FCO,FCO,19/03/2018,9522988," 51,056.40 ",UNIVERSITY OF SUSSEX,Professional Subscriptions
FCO,FCO,15/03/2018,9516559," 50,938.92 ",SERVEST MULTI SERVICE GROUP,Misc Security Payments
FCO,FCO,15/03/2018,9516564," 50,938.92 ",SERVEST MULTI SERVICE GROUP,Misc Security Payments
FCO,FCO,15/03/2018,9516572," 50,938.92 ",SERVEST MULTI SERVICE GROUP,Misc Security Payments
FCO,FCO,14/03/2018,9514259," 50,772.31 ",DEMOCRACY FOR DEVELOPMENT,Programme Spend (Oracle Projects Control Account)
FCO,FCO,15/03/2018,9516380," 50,754.95 ",THE BRITISH COUNCIL,Programme Spend (Oracle Projects Control Account)
FCO,FCO,28/03/2018,9542016," 50,740.15 ",COMPUTACENTER UK LTD,Assets Under Construction (Oracle PA Control Account)
FCO,FCO,22/03/2018,9529133," 50,710.27 ",AL OLA ESTABLISHMENT,Recharge Suspense Account (Oracle PA Control Account)
FCO,FCO,15/03/2018,9516524," 50,696.36 ",FCO SERVICES,"Purchase of Furniture, Fittings and Domestic Appliances"
FCO,FCO,07/03/2018,9497447," 50,638.54 ",KYIV MOHYLA BUSINESS SCHOOL,Recharge Suspense Account (Oracle PA Control Account)
FCO,FCO,16/03/2018,9518532," 50,610.74 ",ISS FACILITY SERVICES LTD FCO OP - POE,Multiple Accounts
FCO,FCO,08/03/2018,9501293," 50,581.83 ",COGENT ELECTRICAL SERVICES LTD FORM WES,Assets Under Construction (Oracle PA Control Account)
FCO,FCO,01/03/2018,9488443," 50,108.00 ",KPMG LLP,Organisation and Change Management Consultancy
FCO,FCO,12/03/2018,9507465," 50,108.00 ",BRITSOURCE INTERNATIONAL,Estates - Other Machinery and Equipment
FCO,FCO,13/03/2018,9511734," 50,033.90 ",FCO SERVICES,IT/IS Consultancy
FCO,FCO,01/03/2018,9488206," 50,019.69 ",GLOBAL PARTNERS GOVERNANCE PRACTICE LTD,Programme Spend (Oracle Projects Control Account)
FCO,FCO,01/03/2018,9488383," 50,000.00 ",ASIA EUROPE FOUNDATION,Programme Spend (Oracle Projects Control Account)
FCO,FCO,02/03/2018,9489784," 50,000.00 ",AECOM,Assets Under Construction (Oracle PA Control Account)
FCO,FCO,14/03/2018,9513866," 50,000.00 ",DEUTSCHE GESELLSCHAFT F�R INTERNATIONALE ZUSAMMENARBEIT GMBH,Recharge Suspense Account (Oracle PA Control Account)
FCO,FCO,14/03/2018,9514137," 50,000.00 ",GOVERNMENT OF SOUTH GEORGIA AND THE SOUTH SANDWICH ISLANDS,Programme Spend (Oracle Projects Control Account)
FCO,FCO,23/03/2018,9531471," 50,000.00 ",INTERNATIONAL CODE OF CONDUCT FOR PRIVATE SECURITY SERVICE PROVIDERS ASSOCIATION,Programme Spend (Oracle Projects Control Account)
FCO,FCO,27/03/2018,9538943," 50,000.00 ",FCO SERVICES,Residential Property Services
FCO,FCO,12/03/2018,9507081," 49,748.68 ",EUROPEAN CENTRE FOR MEDIUM RANGE WEATHER FORECASTS,Climate Change Levy
FCO,FCO,19/03/2018,9522677," 49,651.27 ",A AND A SECURITY SURVEY SHPK,Recharge Suspense Account (Oracle PA Control Account)
FCO,FCO,29/03/2018,9543723," 49,641.59 ",THE EQUAL RIGHTS TRUST,Programme Spend (Oracle Projects Control Account)
FCO,FCO,12/03/2018,9507113," 49,500.94 ",COMPUTACENTER UK LTD,Freight & Customs Clearance Charges
FCO,FCO,20/03/2018,9524965," 49,500.00 ",FCO SERVICES,Information Systems Implementation
FCO,FCO,20/03/2018,9525402," 49,180.89 ",UNITED NATIONS,Programme Spend (Oracle Projects Control Account)
FCO,FCO,26/03/2018,9535859," 49,180.17 ",INDEPENDENT DIPLOMATS,Programme Spend (Oracle Projects Control Account)
FCO,FCO,12/03/2018,9507674," 48,972.25 ",FCO SERVICES,Estates Management Services
FCO,FCO,13/03/2018,9511816," 48,847.50 ",FCO SERVICES,Assets Under Construction (Oracle PA Control Account)
FCO,FCO,26/03/2018,9535592," 48,793.92 ",ALLERGY COSMOS,Estates - Other Machinery and Equipment
FCO,FCO,16/03/2018,9519119," 48,624.58 ",PERMANENT COURT OF ARBITRATION,Programme Spend (Oracle Projects Control Account)
FCO,FCO,23/03/2018,9531817," 48,591.07 ",CPS CROWN PROSECUTION SERVICE HQ,Programme Spend (Oracle Projects Control Account)
FCO,FCO,13/03/2018,9512354," 48,541.27 ",TNT EXPRESS,Specialist Contractors
FCO,FCO,05/03/2018,9493128," 48,500.00 ",AECOM,Programme Spend (Oracle Projects Control Account)
FCO,FCO,22/03/2018,9528685," 48,467.97 ",BHC INDIA STAFF PROVIDENT FUND,Multiple Accounts
FCO,FCO,14/03/2018,9514527," 48,101.72 ",SCHOOL,Schooling for Children at Post
FCO,FCO,26/03/2018,9535712," 47,999.00 ",ACTED,Programme Spend (Oracle Projects Control Account)
FCO,FCO,08/03/2018,9501455," 47,895.00 ",BBC MEDIA ACTION,Programme Spend (Oracle Projects Control Account)
FCO,FCO,13/03/2018,9511794," 47,881.32 ",FCO SERVICES,Assets Under Construction (Oracle PA Control Account)
FCO,FCO,22/03/2018,9529431," 47,846.00 ",FOUNDATION HIRONDELLE,Programme Spend (Oracle Projects Control Account)
FCO,FCO,23/03/2018,9531581," 47,737.26 ",INTERSERVE FM LTD,Construction Project more than 10k
FCO,FCO,13/03/2018,9511792," 47,691.44 ",FCO SERVICES,Assets Under Construction (Oracle PA Control Account)
FCO,FCO,09/03/2018,9504095," 47,637.06 ",FLORIDA AQUA STORE AND UTILITY CONSTRUCTION,Programme Spend (Oracle Projects Control Account)
FCO,FCO,01/03/2018,9488172," 47,604.60 ",HYDROGRAPHIC OFFICE,Programme Spend (Oracle Projects Control Account)
FCO,FCO,07/03/2018,9498744," 47,533.36 ",RANGER PROTECTION AND SECURITY COMPANY LTD,Local Guards
FCO,FCO,08/03/2018,9501945," 47,533.36 ",RANGER PROTECTION AND SECURITY COMPANY LTD,Local Guards
FCO,FCO,19/03/2018,9521758," 47,515.78 ",STANDARD BANK OF MALAWI,Recharge Suspense Account (Oracle PA Control Account)
FCO,FCO,23/03/2018,9532024," 47,385.82 ",Edge International,Estates Management Services
FCO,FCO,09/03/2018,9503687," 47,229.00 ",THE ASIA FOUNDATION,Programme Spend (Oracle Projects Control Account)
FCO,FCO,08/03/2018,9501557," 47,014.00 ",IOM INTERNATIONAL ORG FOR MIGRATION,Compensation Payments
FCO,FCO,15/03/2018,9517104," 46,715.29 ",JAMES R WALLS CONTRACTING CO INC,Construction Project more than 10k
FCO,FCO,13/03/2018,9511843," 46,500.00 ",THE INSTITUTE FOR STATECRAFT,Programme Spend (Oracle Projects Control Account)
FCO,FCO,20/03/2018,9524787," 46,466.39 ",AL GHODWA,Assets Under Construction (Oracle PA Control Account)
FCO,FCO,20/03/2018,9524537," 46,291.40 ",WORLDREACH SOFTWARE CORPORATION,Assets Under Construction (Oracle PA Control Account)
FCO,FCO,29/03/2018,9544124," 46,276.50 ",THE BRITISH COUNCIL,Programme Spend (Oracle Projects Control Account)
FCO,FCO,28/03/2018,9541709," 46,108.57 ",PALLADIUM,Programme Spend (Oracle Projects Control Account)
FCO,FCO,14/03/2018,9514071," 46,062.77 ",SUSTAINABLE CRIMINAL JUSTICE SOLUTIONS,Programme Spend (Oracle Projects Control Account)
FCO,FCO,16/03/2018,9518386," 45,928.37 ",TERRA INCOGNITA,Programme Spend (Oracle Projects Control Account)
FCO,FCO,15/03/2018,9516468," 45,836.27 ",FIEDLER AND RANDEL STEUERBERATER,Multiple Accounts
FCO,FCO,13/03/2018,9511796," 45,762.86 ",FCO SERVICES,Assets Under Construction (Oracle PA Control Account)
FCO,FCO,20/03/2018,9524693," 45,690.20 ",ITAD LTD,Programme Spend (Oracle Projects Control Account)
FCO,FCO,14/03/2018,9514269," 45,675.91 ",THE ROYAL BANK OF SCOTLAND,Recharge Suspense Account (Oracle PA Control Account)
FCO,FCO,20/03/2018,9525023," 45,416.11 ",FCO SERVICES,Assets Under Construction (Oracle PA Control Account)
FCO,FCO,12/03/2018,9507072," 45,386.02 ",INTERNATIONAL FINANCE CORPORATION,Protocol - General VAT Refunds to Other Organisations
FCO,FCO,23/03/2018,9531570," 45,295.21 ",BRIGHT HORIZONS FAMILY SOLUTION LTD,FCO KCS Nursery
FCO,FCO,14/03/2018,9513534," 45,199.77 ",NAJMI SONS AND BROTHERS LTD,Fuel Oil Residential
FCO,FCO,20/03/2018,9524685," 45,135.31 ",STANDARD BANK OF MALAWI,Le Staff Pay
FCO,FCO,20/03/2018,9525140," 45,110.84 ",LONDON SCHOOL OF ECONOMICS AND POLITICAL SCIENCE,Programme Spend (Oracle Projects Control Account)
FCO,FCO,23/03/2018,9531666," 45,013.16 ",FONCIA IPM,Recharge Suspense Account (Oracle PA Control Account)
FCO,FCO,02/03/2018,9489525," 45,000.00 ",CABINET OFFICE,Programme Spend (Oracle Projects Control Account)
FCO,FCO,12/03/2018,9507751," 45,000.00 ",STABILIZATION SUPPORT SERVICES,Programme Spend (Oracle Projects Control Account)
FCO,FCO,23/03/2018,9531922," 45,000.00 ",FCO SERVICES,Estates Management Services
FCO,FCO,28/03/2018,9541223," 45,000.00 ",INTERNATIONAL ADVISORY SERVICES,Programme Spend (Oracle Projects Control Account)
FCO,FCO,28/03/2018,9541990," 45,000.00 ",FCO SERVICES,Assets Under Construction (Oracle PA Control Account)
FCO,FCO,08/03/2018,9500235," 44,953.53 ",HOLYFAX LIMITED,Rental Payments - residential
FCO,FCO,08/03/2018,9501601," 44,883.26 ",VEREINIGUNG FUR DIE DEMOKRATIE IN ASERBAIDSCHAN VDA E.V.,Programme Spend (Oracle Projects Control Account)
FCO,FCO,23/03/2018,9531869," 44,877.45 ",THE BRITISH COUNCIL,Business Hospitality (former DEE)
FCO,FCO,23/03/2018,9531491," 44,732.09 ",BAE SYSTEMS APPLIED INTELLIGENCE LIMITED,Information Systems Maintenance
FCO,FCO,28/03/2018,9541974," 44,576.00 ",FCO SERVICES,Assets Under Construction (Oracle PA Control Account)
FCO,FCO,29/03/2018,9543646," 44,420.00 ",CABINET OFFICE,Training
FCO,FCO,28/03/2018,9541694," 44,304.04 ",RIDGE AND PARTNERS LLP,Assets Under Construction (Oracle PA Control Account)
FCO,FCO,28/03/2018,9542047," 44,216.44 ",DEPARTMENT FOR INTERNATIONAL TRADE,UK Based Staff Pay (Oracle PAY Control Account)
FCO,FCO,13/03/2018,9511742," 44,210.00 ",FCO SERVICES,Technical Supplies (Maint)
FCO,FCO,05/03/2018,9493124," 44,143.00 ",AECOM,Programme Spend (Oracle Projects Control Account)
FCO,FCO,20/03/2018,9525289," 44,130.00 ",IISS - INTERNATIONAL INSTITUTE FOR STRATEGIC STUDIES,Programme Spend (Oracle Projects Control Account)
FCO,FCO,26/03/2018,9535873," 44,083.93 ",NETHERLANDS MINISTRY OF FOREIGN AFFAIRS,Multiple Accounts
FCO,FCO,09/03/2018,9503890," 44,057.49 ",CIKOM DOO PODGORICA,Programme Spend (Oracle Projects Control Account)
FCO,FCO,19/03/2018,9522818," 44,025.00 ",BBC MEDIA ACTION,Programme Spend (Oracle Projects Control Account)
FCO,FCO,14/03/2018,9514239," 43,951.62 ",GLOBAL PARTNERS GOVERNANCE PRACTICE LTD,Programme Spend (Oracle Projects Control Account)
FCO,FCO,09/03/2018,9503968," 43,833.20 ",BUNDESVERMOEGENSAMT,Rental Payments - residential
FCO,FCO,02/03/2018,9489765," 43,814.98 ",IMPULSE ENGINEERING LTD,Assets Under Construction (Oracle PA Control Account)
FCO,FCO,22/03/2018,9529443," 43,797.98 ",CAISSE NATIONALE DE SECU SOCIA,Local Staff Pension Contributions
FCO,FCO,20/03/2018,9525053," 43,671.99 ",FCO SERVICES,Assets Under Construction (Oracle PA Control Account)
FCO,FCO,15/03/2018,9516562," 43,670.00 ",NATHAN ASSOCIATES LONDON LIMITED,Programme Spend (Oracle Projects Control Account)
FCO,FCO,02/03/2018,9489706," 43,637.48 ",FCO SERVICES,Assets Under Construction (Oracle PA Control Account)
FCO,FCO,27/03/2018,9538933," 43,582.00 ",FCO SERVICES,Residential Property Services
FCO,FCO,22/03/2018,9529389," 43,525.36 ",INTERNATIONAL GOVERNANCE AND RISK LIMITED GOVRISK,Programme Spend (Oracle Projects Control Account)
FCO,FCO,20/03/2018,9525028," 43,523.26 ",FCO SERVICES,Assets Under Construction (Oracle PA Control Account)
FCO,FCO,12/03/2018,9508143," 43,373.54 ",INTERSERVE FM LTD,Residential Property Services
FCO,FCO,20/03/2018,9525036," 43,361.56 ",FCO SERVICES,Assets Under Construction (Oracle PA Control Account)
FCO,FCO,13/03/2018,9512199," 43,285.08 ",ISS FACILITY SERVICES LTD FCO OP,Manned Guarding Services
FCO,FCO,01/03/2018,9488370," 43,099.20 ",COFFEY INTERNATIONAL DEVELOPMENT,Programme Spend (Oracle Projects Control Account)
FCO,FCO,19/03/2018,9522943," 43,095.43 ",OROSTREAM INTERNATIONAL CONTRACTS LTD,Assets Under Construction (Oracle PA Control Account)
FCO,FCO,26/03/2018,9535351," 43,029.13 ",VODAFONE LTD,Mobile Telephone Equipment
FCO,FCO,16/03/2018,9519414," 42,980.35 ",CPS CROWN PROSECUTION SERVICE HQ,Programme Spend (Oracle Projects Control Account)
FCO,FCO,22/03/2018,9529412," 42,977.00 ",ZIMBABWE LAWYERS FOR HUMAN RIGHTS,Programme Spend (Oracle Projects Control Account)
FCO,FCO,21/03/2018,9527312," 42,969.00 ",FCO SERVICES,GH/VIP Grant in Aid
FCO,FCO,28/03/2018,9541748," 42,935.00 ",KPMG LLP,Training Courses
FCO,FCO,28/03/2018,9541688," 42,920.00 ",ENGIE LIMITED,Construction Project more than 10k
FCO,FCO,09/03/2018,9503990," 42,861.38 ",UNITED NATIONS,Programme Spend (Oracle Projects Control Account)
FCO,FCO,12/03/2018,9508387," 42,839.41 ",PICKFORDS MOVE MANAGEMENT LTD,Heavy Baggage
FCO,FCO,22/03/2018,9529501," 42,799.42 ",KPMG FIDUCIAIRE,Recharge Suspense Account (Oracle PA Control Account)
FCO,FCO,01/03/2018,9488433," 42,776.75 ",KOIZA INTERNATIONAL LTD,"Purchase of Furniture, Fittings and Domestic Appliances"
FCO,FCO,23/03/2018,9531378," 42,573.23 ",BMATT,Recharge Suspense Account (Oracle PA Control Account)
FCO,FCO,21/03/2018,9527607," 42,498.24 ",JONES LANG LASALLE,Rental Payments - non residential
FCO,FCO,02/03/2018,9489428," 42,484.00 ",IIZUKA,Information Systems Implementation
FCO,FCO,21/03/2018,9527601," 42,484.00 ",IIZUKA,Information Systems Implementation
FCO,FCO,28/03/2018,9542127," 42,434.42 ",HYDROGRAPHIC OFFICE,Programme Spend (Oracle Projects Control Account)
FCO,FCO,16/03/2018,9519445," 42,337.50 ",DX NETWORK SERVICES,Postal Services
FCO,FCO,13/03/2018,9511995," 42,288.98 ",ADVICE ON INDIVIDUAL RIGHTS IN EUROPE,Programme Spend (Oracle Projects Control Account)
FCO,FCO,13/03/2018,9512192," 42,278.51 ",ISS FACILITY SERVICES LTD FCO OP,Multiple Accounts
FCO,FCO,15/03/2018,9516752," 42,247.66 ",UNITED NATIONS,Protocol - General VAT Refunds to Other Organisations
FCO,FCO,08/03/2018,9501936," 41,975.01 ",CENTRE FOR CHANGE MANAGEMENT,Programme Spend (Oracle Projects Control Account)
FCO,FCO,09/03/2018,9502629," 41,778.76 ",OUTBOUND ASIA INC,Programme Spend (Oracle Projects Control Account)
FCO,FCO,23/03/2018,9531634," 41,673.08 ",COMMONWEALTH PARLIAMENTARY ASSOCIATION,Programme Spend (Oracle Projects Control Account)
FCO,FCO,27/03/2018,9538809," 41,573.80 ",HOLDING IMMOBILIARE PALLAVICINI SPA,Rental Payments - residential
FCO,FCO,08/03/2018,9500856," 41,430.68 ",G4S SECURITY SERVICES KENYA LTD,Local Guards
FCO,FCO,13/03/2018,9511706," 41,353.53 ",FCO SERVICES,Assets Under Construction (Oracle PA Control Account)
FCO,FCO,15/03/2018,9516716," 41,321.00 ",SEARCH FOR COMMON GROUND,Programme Spend (Oracle Projects Control Account)
FCO,FCO,12/03/2018,9507381," 41,196.29 ",INTEGRITY RESEARCH AND CONSULTANCY LTD,Programme Spend (Oracle Projects Control Account)
FCO,FCO,21/03/2018,9527334," 41,139.75 ",PALLADIUM,Programme Spend (Oracle Projects Control Account)
FCO,FCO,16/03/2018,9518535," 41,085.56 ",ISS FACILITY SERVICES LTD FCO OP - POE,Rental Payments - residential
FCO,FCO,08/03/2018,9501200," 41,000.00 ",OECD,Programme Spend (Oracle Projects Control Account)
FCO,FCO,08/03/2018,9501501," 41,000.00 ",WILTON PARK EXECUTIVE AGENCY,Training Courses
FCO,FCO,12/03/2018,9508332," 40,875.30 ",INTERSERVE FM LTD,Assets Under Construction (Oracle PA Control Account)
FCO,FCO,14/03/2018,9514319," 40,851.52 ",THE ASIA FOUNDATION,Programme Spend (Oracle Projects Control Account)
FCO,FCO,29/03/2018,9543738," 40,779.00 ",CITY OF WESTMINSTER,Rates Taxes Non-Residential
FCO,FCO,08/03/2018,9501208," 40,760.86 ",ARK GROUP DMCC,Programme Spend (Oracle Projects Control Account)
FCO,FCO,22/03/2018,9529410," 40,703.47 ",SPRINGER CARRIER LTDA,Recharge Suspense Account (Oracle PA Control Account)
FCO,FCO,29/03/2018,9543682," 40,545.97 ",ARDI,Programme Spend (Oracle Projects Control Account)
FCO,FCO,07/03/2018,9498476," 40,544.40 ",OPEN UNIVERSITY WORLDWIDE,Training Courses
FCO,FCO,14/03/2018,9514064," 40,401.19 ",FCO SERVICES,IT/IS Consultancy
FCO,FCO,28/03/2018,9541968," 40,398.00 ",FCO SERVICES,Assets Under Construction (Oracle PA Control Account)
FCO,FCO,28/03/2018,9541024," 40,361.96 ",JCLEC FOUNDATION,Programme Spend (Oracle Projects Control Account)
FCO,FCO,23/03/2018,9531911," 40,256.00 ",GOVERNMENT LEGAL DEPARTMENT,Legal Consultancy
FCO,FCO,27/03/2018,9538919," 40,220.00 ",FCO SERVICES,Assets Under Construction (Oracle PA Control Account)
FCO,FCO,07/03/2018,9496667," 40,017.29 ",G4S RISK MANAGEMENT LTD,Programme Spend (Oracle Projects Control Account)
FCO,FCO,13/03/2018,9512043," 40,004.23 ",RA INITERNATIONAL,Programme Spend (Oracle Projects Control Account)
FCO,FCO,12/03/2018,9507575," 40,000.00 ",CEFAS (THE CENTRE FOR ENVIRONMENT FISHERIES + AQUACULTURE SCIENCE),Programme Spend (Oracle Projects Control Account)
FCO,FCO,15/03/2018,9516697," 40,000.00 ",WILTON PARK EXECUTIVE AGENCY,Inward visits to the UK and UK Conferences
FCO,FCO,20/03/2018,9524943," 40,000.00 ",FCO SERVICES,Information Systems Implementation
FCO,FCO,26/03/2018,9535187," 40,000.00 ",UNITED NATIONS,Programme Spend (Oracle Projects Control Account)
FCO,FCO,16/03/2018,9519177," 39,942.00 ",FCO SERVICES,Estates Management Services
FCO,FCO,26/03/2018,9535645," 39,892.68 ",VODAFONE LTD CABLE AND WIRELESS UK,Telephone line and equipment rental charges
FCO,FCO,26/03/2018,9535220," 39,887.62 ",G4S RISK MANAGEMENT LTD,Programme Spend (Oracle Projects Control Account)
FCO,FCO,15/03/2018,9516464," 39,832.47 ",KOIZA INTERNATIONAL LTD,"Purchase of Furniture, Fittings and Domestic Appliances"
FCO,FCO,23/03/2018,9531717," 39,806.51 ",C230 CONSULTORES SC,Programme Spend (Oracle Projects Control Account)
FCO,FCO,22/03/2018,9529879," 39,648.44 ",GOVERNORS OFFICE CAPITAL FUNDS,Programme Spend (Oracle Projects Control Account)
FCO,FCO,01/03/2018,9488280," 39,497.78 ",BAE SYSTEMS APPLIED INTELLIGENCE LIMITED,Specialist Contractors
FCO,FCO,16/03/2018,9518324," 39,478.42 ",GLOBAL LUXURY IMPORTS LIMITED,Recharge Suspense Account (Oracle PA Control Account)
FCO,FCO,23/03/2018,9531551," 39,432.00 ",DAI EUROPE LIMITED,Programme Spend (Oracle Projects Control Account)
FCO,FCO,16/03/2018,9518525," 39,428.39 ",ISS FACILITY SERVICES LTD FCO OP - POE,Rental Payments - residential
FCO,FCO,13/03/2018,9512219," 39,386.93 ",ISS FACILITY SERVICES LTD FCO OP,FM Interserve BES Maintenance
FCO,FCO,15/03/2018,9516918," 39,267.77 ",AETNA,Subsidy To Local Medical Schemes
FCO,FCO,12/03/2018,9507115," 39,140.17 ",OROSTREAM INTERNATIONAL CONTRACTS LTD,Assets Under Construction (Oracle PA Control Account)
FCO,FCO,08/03/2018,9501505," 39,071.72 ",SECURITAS SAC,Local Guards
FCO,FCO,27/03/2018,9538893," 38,997.75 ",COMPUTACENTER UK LTD,IT/IS Consultancy
FCO,FCO,16/03/2018,9518966," 38,909.20 ",WALSONS SERVICES PVT LTD,Local Guards
FCO,FCO,14/03/2018,9514052," 38,819.00 ",UCL CONSULTANTS LIMITED,Specialist Training (Devolved)
FCO,FCO,20/03/2018,9524704," 38,815.56 ",SYNERGY FOR JUSTICE LTD,Programme Spend (Oracle Projects Control Account)
FCO,FCO,22/03/2018,9529699," 38,796.22 ",THE ROYAL BANK OF SCOTLAND,Multiple Accounts
FCO,FCO,07/03/2018,9497458," 38,668.05 ",VODAFONE LTD,Mobile Telephone Equipment
FCO,FCO,13/03/2018,9511832," 38,654.00 ",BREAKTHROUGH MEDIA NETWORK LTD,Online Content
FCO,FCO,16/03/2018,9517995," 38,644.68 ",ACCOMMODATION PROVIDER,Rental Payments - residential
FCO,FCO,08/03/2018,9501176," 38,478.20 ",EMMAHALY PETROLEUM COMPANY LTD,Fuel Oil Non-Residential
FCO,FCO,26/03/2018,9535644," 38,406.60 ",ROYAL UNITED SERVICES INSTITUTE FOR DEFENCE AND SECURITY STUDIES,Programme Spend (Oracle Projects Control Account)
FCO,FCO,13/03/2018,9511784," 38,333.59 ",FCO SERVICES,Assets Under Construction (Oracle PA Control Account)
FCO,FCO,13/03/2018,9511953," 38,236.56 ",KOIZA INTERNATIONAL LTD,"Purchase of Furniture, Fittings and Domestic Appliances"
FCO,FCO,19/03/2018,9523120," 38,079.40 ",GREAT BRITAIN-CHINA CENTRE,Programme Spend (Oracle Projects Control Account)
FCO,FCO,15/03/2018,9516494," 38,019.23 ",COFFEY INTERNATIONAL DEVELOPMENT,Programme Spend (Oracle Projects Control Account)
FCO,FCO,28/03/2018,9542123," 37,970.28 ",HYDROGRAPHIC OFFICE,Programme Spend (Oracle Projects Control Account)
FCO,FCO,28/03/2018,9541700," 37,962.00 ",KPMG LLP,Training Courses
FCO,FCO,05/03/2018,9493311," 37,800.00 ",INSTITUT FRANCAIS,Language Tuition: Essential
FCO,FCO,16/03/2018,9519328," 37,793.32 ",STADIUM MANAGEMENT LTD,Inward visits to the UK and UK Conferences
FCO,FCO,26/03/2018,9535192," 37,750.00 ",MOD MINISTRY OF DEFENCE,Inward Secondments
FCO,FCO,26/03/2018,9534783," 37,618.68 ",UKRAINE NGO FORUM,Programme Spend (Oracle Projects Control Account)
FCO,FCO,27/03/2018,9538808," 37,605.13 ",AETNA,Subsidy To Local Medical Schemes
FCO,FCO,27/03/2018,9538643," 37,603.71 ",ARK GROUP DMCC,Programme Spend (Oracle Projects Control Account)
FCO,FCO,28/03/2018,9541657," 37,602.85 ",PALLADIUM,Programme Spend (Oracle Projects Control Account)
FCO,FCO,20/03/2018,9525016," 37,517.04 ",FCO SERVICES,Assets Under Construction (Oracle PA Control Account)
FCO,FCO,22/03/2018,9528670," 37,490.28 ",CONTRIBUTORY PROVIDENT FUND,Recharge Suspense Account (Oracle PA Control Account)
FCO,FCO,01/03/2018,9487435," 37,461.28 ",MELMASTI GROUP,General Information Services (inc newspapers and magazines)
FCO,FCO,27/03/2018,9538964," 37,433.33 ",BEHAVIOURAL INSIGHTS TEAM,Programme Spend (Oracle Projects Control Account)
FCO,FCO,16/03/2018,9518520," 37,355.21 ",ISS FACILITY SERVICES LTD FCO OP - POE,Rental Payments - non residential
FCO,FCO,20/03/2018,9524344," 37,265.86 ",ACCOMMODATION PROVIDER,Rental Payments - residential
FCO,FCO,09/03/2018,9504101," 37,247.21 ",HOTELLINE FOR TOURISTIC INVESTMENT LTD,Multiple Accounts
FCO,FCO,27/03/2018,9538902," 37,142.96 ",FCO SERVICES,Assets Under Construction (Oracle PA Control Account)
FCO,FCO,09/03/2018,9503942," 37,105.00 ",ACTICA CONSULTING LTD,Programme Spend (Oracle Projects Control Account)
FCO,FCO,12/03/2018,9508292," 37,100.00 ",INTERSERVE FM LTD,Construction Project more than 10k
FCO,FCO,19/03/2018,9522337," 36,982.21 ",UNITED NATIONS,Programme Spend (Oracle Projects Control Account)
FCO,FCO,22/03/2018,9529426," 36,972.13 ",ALBANY ASSOCIATES,Programme Spend (Oracle Projects Control Account)
FCO,FCO,15/03/2018,9516753," 36,942.22 ",BAE SYSTEMS APPLIED INTELLIGENCE LIMITED,Specialist Contractors
FCO,FCO,12/03/2018,9507685," 36,887.91 ",JOURNALISM DEVELOPMENT NETWORK,Programme Spend (Oracle Projects Control Account)
FCO,FCO,28/03/2018,9541706," 36,800.00 ",PDP PROJECTS LIMITED,Security: Works Residential
FCO,FCO,13/03/2018,9511741," 36,692.00 ",THECITYUK,Programme Spend (Oracle Projects Control Account)
FCO,FCO,01/03/2018,9482523," 36,644.16 ",ALDAR PROPERTIES PJSC,Rental Payments - residential
FCO,FCO,01/03/2018,9482525," 36,644.16 ",ALDAR PROPERTIES PJSC,Rental Payments - residential
FCO,FCO,26/03/2018,9535277," 36,622.31 ",COLLEGE OF POLICING,Programme Spend (Oracle Projects Control Account)
FCO,FCO,12/03/2018,9508526," 36,618.41 ",LIONEL BLACKMAN,Programme Spend (Oracle Projects Control Account)
FCO,FCO,15/03/2018,9516661," 36,609.27 ",KOIZA INTERNATIONAL LTD,"Purchase of Furniture, Fittings and Domestic Appliances"
FCO,FCO,01/03/2018,9488397," 36,586.92 ",CATHOLIC RELIEF SERVICES,Programme Spend (Oracle Projects Control Account)
FCO,FCO,21/03/2018,9527198," 36,572.96 ",DAI EUROPE LIMITED,Programme Spend (Oracle Projects Control Account)
FCO,FCO,09/03/2018,9504087," 36,560.77 ",NATIONAL HOTEL COMPLEX,Rental Payments - non residential
FCO,FCO,13/03/2018,9511641," 36,531.00 ",FCO SERVICES,Assets Under Construction (Oracle PA Control Account)
FCO,FCO,19/03/2018,9523112," 36,500.00 ",KINGS COLLEGE LONDON,Misc Expenditure (only to be used if no other suitable account)
FCO,FCO,12/03/2018,9508297," 36,437.08 ",INTERSERVE FM LTD,Construction Project more than 10k
FCO,FCO,20/03/2018,9525034," 36,426.00 ",FCO SERVICES,Assets Under Construction (Oracle PA Control Account)
FCO,FCO,12/03/2018,9508293," 36,290.16 ",INTERSERVE FM LTD,Construction Project more than 10k
FCO,FCO,01/03/2018,9488114," 36,000.00 ",FCO SERVICES,Assets Under Construction (Oracle PA Control Account)
FCO,FCO,01/03/2018,9488116," 36,000.00 ",FCO SERVICES,Assets Under Construction (Oracle PA Control Account)
FCO,FCO,08/03/2018,9501808," 35,992.20 ",AETNA,Subsidy To Local Medical Schemes
FCO,FCO,26/03/2018,9534772," 35,972.20 ",INTL NGO FORUM ON INDONESN DEVLPMT,Programme Spend (Oracle Projects Control Account)
FCO,FCO,23/03/2018,9531647," 35,909.54 ",BEYOND BORDERS CONSULTING,Recharge Suspense Account (Oracle PA Control Account)
FCO,FCO,21/03/2018,9527576," 35,876.47 ",ADAM SMITH INTERNATIONAL,Programme Spend (Oracle Projects Control Account)
FCO,FCO,14/03/2018,9513565," 35,814.64 ",BMATT,Recharge Suspense Account (Oracle PA Control Account)
FCO,FCO,12/03/2018,9507063," 35,757.29 ",UNITED NATIONS,Protocol - General VAT Refunds to Other Organisations
FCO,FCO,14/03/2018,9514157," 35,743.97 ",EUROMED FEMINIST INITIATIVE IFE EFI,Programme Spend (Oracle Projects Control Account)
FCO,FCO,07/03/2018,9496668," 35,729.05 ",SINO-US UNITED METLIFE INSURANCE COMPANY LIMITED BEIJING BRANCH,Subsidy To Local Medical Schemes
FCO,FCO,01/03/2018,9488387," 35,719.79 ",BRICKELL BAY TOWER LTD,Rental Payments - non residential
FCO,FCO,13/03/2018,9511872," 35,678.19 ",COMITATO INTERNAZIONALE PER LO SVILUPPO DEI POPOLI CISP,Programme Spend (Oracle Projects Control Account)
FCO,FCO,20/03/2018,9525342," 35,619.19 ",TRIAL INTERNATIONAL,Programme Spend (Oracle Projects Control Account)
FCO,FCO,29/03/2018,9544097," 35,429.85 ",THE LONDON INSTITUTE OF BANKING AND FINANCE,Programme Spend (Oracle Projects Control Account)
FCO,FCO,16/03/2018,9518531," 35,323.17 ",ISS FACILITY SERVICES LTD FCO OP - POE,Rental Payments - residential
FCO,FCO,27/03/2018,9538852," 35,189.00 ",FCO SERVICES,Assets Under Construction (Oracle PA Control Account)
FCO,FCO,02/03/2018,9489746," 35,145.00 ",GOVERNMENT LEGAL DEPARTMENT,Computer Bureau Services
FCO,FCO,29/03/2018,9543490," 35,112.00 ",IOM INTERNATIONAL ORG FOR MIGRATION,Programme Spend (Oracle Projects Control Account)
FCO,FCO,29/03/2018,9544085," 35,062.68 ",COMPUTACENTER UK LTD,Assets Under Construction (Oracle PA Control Account)
FCO,FCO,13/03/2018,9511644," 35,000.00 ",FCO SERVICES,Assets Under Construction (Oracle PA Control Account)
FCO,FCO,22/03/2018,9529138," 35,000.00 ",FCO SERVICES,Assets Under Construction (Oracle PA Control Account)
FCO,FCO,21/03/2018,9527399," 34,936.33 ",COMPUTACENTER UK LTD,Assets Under Construction (Oracle PA Control Account)
FCO,FCO,27/03/2018,9539067," 34,853.75 ",THE AMERICAN UNIVERSITY IN CAIRO,Programme Spend (Oracle Projects Control Account)
FCO,FCO,26/03/2018,9535851," 34,816.80 ",MARCH,Programme Spend (Oracle Projects Control Account)
FCO,FCO,12/03/2018,9507030," 34,756.55 ",INTERNATIONAL GRAINS COUNCIL,Protocol - General VAT Refunds to Other Organisations
FCO,FCO,28/03/2018,9541702," 34,690.00 ",ENGIE LIMITED,Construction Project more than 10k
FCO,FCO,20/03/2018,9524899," 34,665.00 ",SAHAN FOUNDATION LTD,Programme Spend (Oracle Projects Control Account)
FCO,FCO,02/03/2018,9489759," 34,618.92 ",IMPULSE ENGINEERING LTD,Assets Under Construction (Oracle PA Control Account)
FCO,FCO,09/03/2018,9503717," 34,594.10 ",CABINET OFFICE,Training
FCO,FCO,02/03/2018,9489216," 34,579.64 ",ACCOMMODATION PROVIDER,Rental Payments - residential
FCO,FCO,12/03/2018,9506362," 34,579.64 ",GALA INSTALLATION SERVICES LLC,Recharge Suspense Account (Oracle PA Control Account)
FCO,FCO,26/03/2018,9535222," 34,579.64 ",ACCOMMODATION PROVIDER,Rental Payments - residential
FCO,FCO,20/03/2018,9524938," 34,562.00 ",FCO SERVICES,Specialist Contractors
FCO,FCO,28/03/2018,9542128," 34,424.13 ",HYDROGRAPHIC OFFICE,Programme Spend (Oracle Projects Control Account)
FCO,FCO,01/03/2018,9479956," 34,421.25 ",HYGEIA HMO LIMITED,Le Medical Staff Salaries
FCO,FCO,12/03/2018,9505833," 34,325.52 ",RINACAND COMPANY LIMITED,Recharge Suspense Account (Oracle PA Control Account)
FCO,FCO,26/03/2018,9535242," 34,311.93 ",ACCOMMODATION PROVIDER,Rental Payments - residential
FCO,FCO,02/03/2018,9489830," 34,272.80 ",GLASGOW LTD,Inward visits to the UK and UK Conferences
FCO,FCO,23/03/2018,9531442," 34,160.61 ",OVERSEAS SUPPLY SERVICES LTD,UK Guarding Contracts Overseas
FCO,FCO,27/03/2018,9538616," 34,142.44 ",CHRISTIAN SOLIDARITY WORLDWIDE,Programme Spend (Oracle Projects Control Account)
FCO,FCO,27/03/2018,9538854," 34,091.74 ",FCO SERVICES,Assets Under Construction (Oracle PA Control Account)
FCO,FCO,29/03/2018,9543587," 34,027.17 ",WESTMINSTER FOUNDATION FOR DEMOCRACY,Programme Spend (Oracle Projects Control Account)
FCO,FCO,09/03/2018,9504098," 34,003.31 ",G4S SECURITY SERVICE DRC SPRL,Local Guards
FCO,FCO,19/03/2018,9522893," 33,924.08 ",DOGAN BURDA DERGI YAYINCILIK,Programme Spend (Oracle Projects Control Account)
FCO,FCO,23/03/2018,9532055," 33,848.40 ",OROSTREAM INTERNATIONAL CONTRACTS LTD,Unscheduled repairs to building infrastructure
FCO,FCO,26/03/2018,9535196," 33,840.00 ",ACTICA CONSULTING LTD,Programme Spend (Oracle Projects Control Account)
FCO,FCO,05/03/2018,9493033," 33,800.00 ",JWB CRAWFORD,Recharge Suspense Account (Oracle PA Control Account)
FCO,FCO,14/03/2018,9514076," 33,776.56 ",ALBANY ASSOCIATES,Programme Spend (Oracle Projects Control Account)
FCO,FCO,19/03/2018,9522159," 33,622.50 ",COMPUTACENTER UK LTD,Assets Under Construction (Oracle PA Control Account)
FCO,FCO,16/03/2018,9519055," 33,496.58 ",ADAM SMITH INTERNATIONAL,Programme Spend (Oracle Projects Control Account)
FCO,FCO,28/03/2018,9542121," 33,400.50 ",HYDROGRAPHIC OFFICE,Programme Spend (Oracle Projects Control Account)
FCO,FCO,07/03/2018,9498484," 33,400.00 ",INTERNATIONAL COMMISSION OF JURISTS,Programme Spend (Oracle Projects Control Account)
FCO,FCO,28/03/2018,9541714," 33,377.90 ",AECOM,Programme Spend (Oracle Projects Control Account)
FCO,FCO,26/03/2018,9535633," 33,304.31 ",TODD RESEARCH LTD,Estates - Other Machinery and Equipment
FCO,FCO,27/03/2018,9538695," 33,200.00 ",FCO SERVICES,Specialist Contractors
FCO,FCO,22/03/2018,9529442," 33,166.58 ",VEREINIGUNG FUR DIE DEMOKRATIE IN ASERBAIDSCHAN VDA E.V.,Programme Spend (Oracle Projects Control Account)
FCO,FCO,13/03/2018,9511713," 33,101.49 ",FCO SERVICES,IT/IS Consultancy
FCO,FCO,08/03/2018,9501472," 33,090.04 ",JOURNALISM DEVELOPMENT NETWORK,Programme Spend (Oracle Projects Control Account)
FCO,FCO,27/03/2018,9538935," 33,040.00 ",WILTON PARK EXECUTIVE AGENCY,Programme Spend (Oracle Projects Control Account)
FCO,FCO,26/03/2018,9535136," 32,995.12 ",BREATHEEASY CONSULTANTS PRIVATE LIMITED,Estates - Other Machinery and Equipment
FCO,FCO,26/03/2018,9535345," 32,984.00 ",THE STABILISATION AND RECOVERY NETWORK TSRN,Recharge Suspense Account (Oracle PA Control Account)
FCO,FCO,15/03/2018,9516015," 32,977.34 ",JCLEC FOUNDATION,Programme Spend (Oracle Projects Control Account)
FCO,FCO,14/03/2018,9513504," 32,929.90 ",AFGHANISTAN CAPACITY DEVELOPMENT AND EDUCATIONAL ORGANIZATION,Programme Spend (Oracle Projects Control Account)
FCO,FCO,01/03/2018,9488432," 32,906.25 ",GEORGE KING ARCHITECTS LTD,Professional Fees
FCO,FCO,21/03/2018,9526586," 32,883.23 ",SOUTH REVENUE SERVICE,Le Staff Pay
FCO,FCO,09/03/2018,9503978," 32,872.26 ",THE EDUCATION AND DIVERSITY FOUNDATION,Programme Spend (Oracle Projects Control Account)
FCO,FCO,12/03/2018,9507033," 32,841.86 ",INTERNATIONAL SERVICE FOR HUMAN RIGHTS,Programme Spend (Oracle Projects Control Account)
FCO,FCO,12/03/2018,9505968," 32,761.96 ",AFRICAN SKIES LTD,Programme Spend (Oracle Projects Control Account)
FCO,FCO,22/03/2018,9529059," 32,761.96 ",AFRICAN SKIES LTD,Programme Spend (Oracle Projects Control Account)
FCO,FCO,27/03/2018,9538932," 32,746.42 ",GENEVA CENTRE FOR THE DEMOCRATIC CONTROL OF ARMED FORCES - DCAF,Programme Spend (Oracle Projects Control Account)
FCO,FCO,12/03/2018,9508446," 32,709.07 ",THE ROYAL BANK OF SCOTLAND,Children's Concessionary Journeys
FCO,FCO,12/03/2018,9508304," 32,699.66 ",INTERSERVE FM LTD,Construction Project more than 10k
FCO,FCO,20/03/2018,9524937," 32,684.38 ",RAMBOLL DANMARK AS,Estates Management Services
FCO,FCO,09/03/2018,9503714," 32,674.15 ",CASE MATRIX NETWORK,Programme Spend (Oracle Projects Control Account)
FCO,FCO,20/03/2018,9525031," 32,617.71 ",FCO SERVICES,Assets Under Construction (Oracle PA Control Account)
FCO,FCO,12/03/2018,9507352," 32,606.85 ",THE AMERICAN UNIVERSITY IN CAIRO,Programme Spend (Oracle Projects Control Account)
FCO,FCO,13/03/2018,9511735," 32,529.55 ",ADAM SMITH INTERNATIONAL,Programme Spend (Oracle Projects Control Account)
FCO,FCO,21/03/2018,9527430," 32,515.00 ",TRIAL INTERNATIONAL,Programme Spend (Oracle Projects Control Account)
FCO,FCO,14/03/2018,9514298," 32,479.99 ",WESTMINSTER FOUNDATION FOR DEMOCRACY,Programme Spend (Oracle Projects Control Account)
FCO,FCO,12/03/2018,9507061," 32,455.25 ",KOIZA INTERNATIONAL LTD,"Purchase of Furniture, Fittings and Domestic Appliances"
FCO,FCO,13/03/2018,9512132," 32,418.41 ",EXPRESS TITLE COMPANY,Assets Under Construction (Oracle PA Control Account)
FCO,FCO,16/03/2018,9518430," 32,316.12 ",NEW ERA OIL AND GAS,Fuel Oil Residential
FCO,FCO,05/03/2018,9493499," 32,305.05 ",DFID DEPT INTERNATIONAL DEVELOPMENT,Programme Spend (Oracle Projects Control Account)
FCO,FCO,02/03/2018,9489715," 32,069.36 ",FCO SERVICES,Estates Management Services
FCO,FCO,27/03/2018,9538744," 32,000.00 ",FCO SERVICES,Residential Property Services
FCO,FCO,20/03/2018,9525124," 31,900.70 ",AXIOM INTERNATIONAL LTD,Programme Spend (Oracle Projects Control Account)
FCO,FCO,23/03/2018,9531908," 31,863.10 ",GOVERNMENT LEGAL DEPARTMENT,Legal Consultancy
FCO,FCO,01/03/2018,9484559," 31,833.10 ",KOIZA INTERNATIONAL LTD,"Purchase of Furniture, Fittings and Domestic Appliances"
FCO,FCO,20/03/2018,9524702," 31,747.08 ",CIPFA - CHARTERED INSTITUTE OF PUBLIC FINANCE & ACCOUNTANCY,Programme Spend (Oracle Projects Control Account)
FCO,FCO,23/03/2018,9532033," 31,705.17 ",KARAFOTIAS ATHANASIOS OE,Recharge Suspense Account (Oracle PA Control Account)
FCO,FCO,16/03/2018,9519033," 31,682.69 ",COFFEY INTERNATIONAL DEVELOPMENT,Programme Spend (Oracle Projects Control Account)
FCO,FCO,14/03/2018,9513455," 31,665.09 ",PAGE GROUP ISRAEL LIMITED,Local Guards
FCO,FCO,16/03/2018,9519264," 31,640.00 ",OROSTREAM INTERNATIONAL CONTRACTS LTD,Property Maintenance Overseas Non Residential
FCO,FCO,21/03/2018,9527317," 31,632.78 ",KOIZA INTERNATIONAL LTD,"Purchase of Furniture, Fittings and Domestic Appliances"
FCO,FCO,29/03/2018,9544081," 31,530.69 ",BAE SYSTEMS APPLIED INTELLIGENCE LIMITED,Information Systems Maintenance
FCO,FCO,26/03/2018,9534771," 31,447.15 ",JCLEC FOUNDATION,Programme Spend (Oracle Projects Control Account)
FCO,FCO,02/03/2018,9489535," 31,444.16 ",VALARD CONSTRUCTION LP,Programme Spend (Oracle Projects Control Account)
FCO,FCO,27/03/2018,9538567," 31,410.38 ",ONE SANSOME PROPERTY LLC,Rental Payments - non residential
FCO,FCO,01/03/2018,9488408," 31,410.37 ",ONE SANSOME PROPERTY LLC,Rental Payments - non residential
FCO,FCO,07/03/2018,9498124," 31,400.00 ",ROYAL AERONAUTICAL SOCIETY,Inward visits to the UK and UK Conferences
FCO,FCO,13/03/2018,9512087," 31,394.71 ",CENTER FOR STRATEGIC AND INTERNATIONAL STUDIES,Programme Spend (Oracle Projects Control Account)
FCO,FCO,28/03/2018,9541283," 31,315.52 ",ACCOMMODATION PROVIDER,Rental Payments - residential
FCO,FCO,27/03/2018,9539126," 31,032.16 ",INTERNATIONAL MEDIA SUPPORT IMS,Programme Spend (Oracle Projects Control Account)
FCO,FCO,13/03/2018,9511704," 31,000.00 ",FCO SERVICES,Assets Under Construction (Oracle PA Control Account)
FCO,FCO,27/03/2018,9538846," 31,000.00 ",FCO SERVICES,Assets Under Construction (Oracle PA Control Account)
FCO,FCO,27/03/2018,9538674," 30,891.44 ",EAST & WEST INTERNATIONAL GROUP LLC,Rental Payments - residential
FCO,FCO,15/03/2018,9516582," 30,835.72 ",GOVERNMENT LEGAL DEPARTMENT,Legal Consultancy
FCO,FCO,29/03/2018,9543685," 30,812.54 ",HOME OFFICE,Programme Spend (Oracle Projects Control Account)
FCO,FCO,19/03/2018,9522997," 30,789.63 ",CAPITA BUSINESS SERVICES LTD,Training Courses
FCO,FCO,26/03/2018,9535663," 30,670.25 ",INTERNEWS EUROPE,Programme Spend (Oracle Projects Control Account)
FCO,FCO,28/03/2018,9542028," 30,615.27 ",DEPARTMENT FOR INTERNATIONAL TRADE,UK Based Staff Pay (Oracle PAY Control Account)
FCO,FCO,19/03/2018,9522356," 30,502.13 ",UNITED NATIONS,Programme Spend (Oracle Projects Control Account)
FCO,FCO,28/03/2018,9541199," 30,481.61 ",BASSAM MOHD KHATIB,Recharge Suspense Account (Oracle PA Control Account)
FCO,FCO,26/03/2018,9535535," 30,460.00 ",CHINA-BRITAIN BUSINESS COUNCIL,Programme Spend (Oracle Projects Control Account)
FCO,FCO,26/03/2018,9535533," 30,442.62 ",THE ROYAL BANK OF SCOTLAND,Multiple Accounts
FCO,FCO,13/03/2018,9509570," 30,401.10 ",RILAM PROPERTY MANAGEMENT LLC,Rental Payments - residential
FCO,FCO,27/03/2018,9538519," 30,267.74 ",MAYORS OFFICE FOR POLICING AND CRIME MOPC,Programme Spend (Oracle Projects Control Account)
FCO,FCO,22/03/2018,9529873," 30,258.04 ",HEARTLAND ALLIANCE FOR HUMAN NEEDS AND HUMAN RIGHTS,Programme Spend (Oracle Projects Control Account)
FCO,FCO,20/03/2018,9524849," 30,257.19 ",TALIA LIMITED,Telephone line and equipment rental charges
FCO,FCO,26/03/2018,9535856," 30,190.03 ",IIJ INT INST JUSTICE RULE OF LAW,Programme Spend (Oracle Projects Control Account)
FCO,FCO,12/03/2018,9507007," 30,137.24 ",DIPLOMAT FREIGHT SERVICES LTD(DFS),Multiple Accounts
FCO,FCO,13/03/2018,9511682," 30,118.10 ",FCO SERVICES,Assets Under Construction (Oracle PA Control Account)
FCO,FCO,21/03/2018,9527392," 30,092.78 ",KOIZA INTERNATIONAL LTD,"Purchase of Furniture, Fittings and Domestic Appliances"
FCO,FCO,22/03/2018,9529870," 30,055.18 ",VALARD CONSTRUCTION LP,Programme Spend (Oracle Projects Control Account)
FCO,FCO,28/03/2018,9541697," 30,012.98 ",PALLADIUM,Programme Spend (Oracle Projects Control Account)
FCO,FCO,16/03/2018,9518919," 30,010.00 ",OECD,Programme Spend (Oracle Projects Control Account)
FCO,FCO,01/03/2018,9478082," 30,000.00 ",TURNKEY CONSULTING AFRICA PTY LTD,Assets Under Construction (Oracle PA Control Account)
FCO,FCO,01/03/2018,9488180," 30,000.00 ",FORENSIC SCIENCE NORTHERN IRELAND,Programme Spend (Oracle Projects Control Account)
FCO,FCO,01/03/2018,9488368," 30,000.00 ",GLOBAL CENTER COOP SEC,Programme Spend (Oracle Projects Control Account)
FCO,FCO,13/03/2018,9509917," 30,000.00 ",UNITED NATIONS OFFICE ON DRUGS AND CRIME,Programme Spend (Oracle Projects Control Account)
FCO,FCO,19/03/2018,9522998," 30,000.00 ",TORCHLIGHT SOLUTIONS LTD,Programme Spend (Oracle Projects Control Account)
FCO,FCO,20/03/2018,9524585," 30,000.00 ",DIPLOMATIC MISSION SUPPLIES LTD,"Purchase of Furniture, Fittings and Domestic Appliances"
FCO,FCO,21/03/2018,9527145," 30,000.00 ",BRITISH GEOLOGICAL SURVEY,Programme Spend (Oracle Projects Control Account)
FCO,FCO,21/03/2018,9527762," 30,000.00 ",FCO SERVICES,Information Systems Under 3000 (non-capitalised)
FCO,FCO,26/03/2018,9535247," 30,000.00 ",THE BRITISH COUNCIL,Repairs And Refurbishment: Works Residential
FCO,FCO,27/03/2018,9538523," 30,000.00 ",DELIVERY ASSOCIATES LIMITED,Recharge Suspense Account (Oracle PA Control Account)
FCO,FCO,27/03/2018,9538934," 30,000.00 ",FCO SERVICES,Residential Property Services
FCO,FCO,27/03/2018,9539065," 30,000.00 ",UNITED NATIONS,Inward visits to the UK and UK Conferences
FCO,FCO,13/03/2018,9511685," 29,976.98 ",FCO SERVICES,Assets Under Construction (Oracle PA Control Account)
FCO,FCO,09/03/2018,9503982," 29,947.26 ",THE EDUCATION AND DIVERSITY FOUNDATION,Programme Spend (Oracle Projects Control Account)
FCO,FCO,15/03/2018,9516608," 29,871.18 ",BAE SYSTEMS APPLIED INTELLIGENCE LIMITED,Information Systems Maintenance
FCO,FCO,27/03/2018,9539041," 29,744.96 ",VEREINIGUNG FUR DIE DEMOKRATIE IN ASERBAIDSCHAN VDA E.V.,Programme Spend (Oracle Projects Control Account)
FCO,FCO,12/03/2018,9507682," 29,736.28 ",FCO SERVICES,IT/IS Consultancy
FCO,FCO,16/03/2018,9519200," 29,733.82 ",FCO SERVICES,Assets Under Construction (Oracle PA Control Account)
FCO,FCO,12/03/2018,9507043," 29,696.61 ",NORTH EAST ATLANTIC FISHERIES COMMN,Protocol - General VAT Refunds to Other Organisations
FCO,FCO,28/03/2018,9542070," 29,677.94 ",BRICKELL BAY TOWER LTD,Rental Payments - non residential
FCO,FCO,29/03/2018,9544118," 29,669.27 ",VALARD CONSTRUCTION LP,Programme Spend (Oracle Projects Control Account)
FCO,FCO,12/03/2018,9507446," 29,640.48 ",KOIZA INTERNATIONAL LTD,"Purchase of Furniture, Fittings and Domestic Appliances"
FCO,FCO,01/03/2018,9488169," 29,607.96 ",HYDROGRAPHIC OFFICE,Programme Spend (Oracle Projects Control Account)
FCO,FCO,12/03/2018,9507012," 29,583.41 ",CIPFA - CHARTERED INSTITUTE OF PUBLIC FINANCE & ACCOUNTANCY,Programme Spend (Oracle Projects Control Account)
FCO,FCO,19/03/2018,9522860," 29,566.27 ",CARAT,Programme Spend (Oracle Projects Control Account)
FCO,FCO,21/03/2018,9527738," 29,539.03 ",INSTITUTO DE GESTAO FINANCEIRA DA SEGURANCA SOCIAL,Le Staff Pay
FCO,FCO,23/03/2018,9531741," 29,401.62 ",THE ROYAL BANK OF SCOTLAND,Programme Spend (Oracle Projects Control Account)
FCO,FCO,15/03/2018,9515746," 29,176.57 ",OCONNELL WALSHE AND PARTNERS LTD,Rental Payments - residential
FCO,FCO,20/03/2018,9524611," 29,110.00 ",DIPLOMATIC MISSION SUPPLIES LTD,"Purchase of Furniture, Fittings and Domestic Appliances"
FCO,FCO,15/03/2018,9516006," 29,033.81 ",TCHATCHOUA JOSEPH,Recharge Suspense Account (Oracle PA Control Account)
FCO,FCO,29/03/2018,9543752," 28,996.50 ",CONTROL RISKS GROUP,Programme Spend (Oracle Projects Control Account)
FCO,FCO,06/03/2018,9495575," 28,990.99 ",BAE SYSTEMS APPLIED INTELLIGENCE LIMITED,Information Systems Maintenance
FCO,FCO,29/03/2018,9543568," 28,990.58 ",INSTITUTE FOR INTERNATIONAL CRIMINAL INVESTIGATIONS,Programme Spend (Oracle Projects Control Account)
FCO,FCO,08/03/2018,9501226," 28,908.00 ",INTERNATIONAL GOVERNANCE AND RISK LIMITED GOVRISK,Programme Spend (Oracle Projects Control Account)
FCO,FCO,15/03/2018,9516759," 28,824.24 ",EUROPEAN PARLIAMENT,Protocol - General VAT Refunds to Other Organisations
FCO,FCO,19/03/2018,9522728," 28,816.37 ",NFL PROPERTIES LLC,Programme Spend (Oracle Projects Control Account)
FCO,FCO,27/03/2018,9539098," 28,813.75 ",CIVICA UK LIMITED,Assets Under Construction (Oracle PA Control Account)
FCO,FCO,22/03/2018,9528689," 28,810.00 ",CONTRIBUTORY PROVIDENT FUND,Le Staff Pay
FCO,FCO,06/03/2018,9495187," 28,800.00 ",CABINET OFFICE,Work Placements
FCO,FCO,20/03/2018,9525017," 28,786.13 ",FCO SERVICES,Air Freight Dip Bags - Freight & Clearance Charges
FCO,FCO,12/03/2018,9507597," 28,760.00 ",HEALTH AND SAFETY EXECUTIVE,Programme Spend (Oracle Projects Control Account)
FCO,FCO,15/03/2018,9516475," 28,720.00 ",CABINET OFFICE,Legal Consultancy
FCO,FCO,06/03/2018,9495200," 28,708.00 ",POWER ELECTRICS GENERATORS LTD,Assets Under Construction (Oracle PA Control Account)
FCO,FCO,28/03/2018,9542073," 28,657.26 ",GUIDANCE SOFTWARE INC,Licences
FCO,FCO,14/03/2018,9514146," 28,587.00 ",FCO SERVICES,Construction Project more than 10k
FCO,FCO,20/03/2018,9524929," 28,547.82 ",REUTERS FOUNDATION CONSULTANTS LIMITED,Programme Spend (Oracle Projects Control Account)
FCO,FCO,12/03/2018,9506023," 28,528.20 ",Q PARK LIMITED,Rental Payments - residential
FCO,FCO,07/03/2018,9498733," 28,477.83 ",HEARTLAND ALLIANCE FOR HUMAN NEEDS AND HUMAN RIGHTS,Programme Spend (Oracle Projects Control Account)
FCO,FCO,01/03/2018,9488162," 28,468.62 ",HYDROGRAPHIC OFFICE,Programme Spend (Oracle Projects Control Account)
FCO,FCO,28/03/2018,9541257," 28,465.26 ",FOUNTAINHEAD ENTERTAINMENT PVT LTD,Programme Spend (Oracle Projects Control Account)
FCO,FCO,29/03/2018,9543733," 28,463.25 ",RSM RISK ASSURANCE SERVICES LLP,Specialist Contractors
FCO,FCO,23/03/2018,9531478," 28,453.33 ",BAE SYSTEMS APPLIED INTELLIGENCE LIMITED,Information Systems Maintenance
FCO,FCO,15/03/2018,9516536," 28,445.00 ",FCO SERVICES,Assets Under Construction (Oracle PA Control Account)
FCO,FCO,12/03/2018,9505590," 28,439.74 ",INTERNATIONAL CAPITAL TRADING,Rental Payments - residential
FCO,FCO,05/03/2018,9493342," 28,438.76 ",BLUEPRINT CONSULTING,Programme Spend (Oracle Projects Control Account)
FCO,FCO,12/03/2018,9508336," 28,282.07 ",INTERSERVE FM LTD,Assets Under Construction (Oracle PA Control Account)
FCO,FCO,23/03/2018,9531460," 28,279.30 ",TORCHLIGHT SOLUTIONS LTD,Programme Spend (Oracle Projects Control Account)
FCO,FCO,13/03/2018,9512184," 28,192.18 ",ISS FACILITY SERVICES LTD FCO OP,FM Interserve BES Maintenance
FCO,FCO,27/03/2018,9538499," 28,164.44 ",SEARCH FOR COMMON GROUND,Programme Spend (Oracle Projects Control Account)
FCO,FCO,12/03/2018,9506000," 28,095.96 ",KIPEPEO APARTMENTS LTD,Rental Payments - residential
FCO,FCO,19/03/2018,9521715," 28,085.98 ",THE ASIA FOUNDATION,Programme Spend (Oracle Projects Control Account)
FCO,FCO,06/03/2018,9494529," 28,047.69 ",ACCOMMODATION PROVIDER,Rental Payments - residential
FCO,FCO,08/03/2018,9501337," 28,021.22 ",COMPUTACENTER UK LTD,Assets Under Construction (Oracle PA Control Account)
FCO,FCO,15/03/2018,9516491," 28,010.00 ",SONCELL MIDDLE EAST LTD,Programme Spend (Oracle Projects Control Account)
FCO,FCO,22/03/2018,9529182," 28,000.00 ",FCO SERVICES,Assets Under Construction (Oracle PA Control Account)
FCO,FCO,28/03/2018,9541208," 27,989.33 ",OVE ARUP & PARTNERS LTD,Programme Spend (Oracle Projects Control Account)
FCO,FCO,19/03/2018,9522763," 27,939.99 ",FINANCIERA DE DESARROLLO TERRITORIAL SA FINDETER,Programme Spend (Oracle Projects Control Account)
FCO,FCO,27/03/2018,9538532," 27,900.00 ",ARK GROUP DMCC,Programme Spend (Oracle Projects Control Account)
FCO,FCO,16/03/2018,9519377," 27,891.89 ",CERTAS ENERGY UK LTD,Fuel Oil Non-Residential
FCO,FCO,26/03/2018,9535082," 27,838.08 ",HOGG ROBINSON NIGERIA LTD,Le Staff Pay
FCO,FCO,27/03/2018,9538322," 27,802.29 ",MABEL BERNARD KAHLER,Recharge Suspense Account (Oracle PA Control Account)
FCO,FCO,26/03/2018,9535701," 27,672.99 ",AVARN SECURITY OY,Local Guards
FCO,FCO,08/03/2018,9500805," 27,663.09 ",NARFU DEVELOPMENT FUND,Programme Spend (Oracle Projects Control Account)
FCO,FCO,27/03/2018,9538638," 27,613.00 ",WOMEN FOR WOMEN INTERNATIONAL,Programme Spend (Oracle Projects Control Account)
FCO,FCO,01/03/2018,9484245," 27,521.68 ",SOMEM,Property Maintenance Overseas Residential
FCO,FCO,20/03/2018,9524880," 27,500.00 ",VIVID ECONOMICS LTD,Programme Spend (Oracle Projects Control Account)
FCO,FCO,16/03/2018,9518519," 27,458.24 ",ISS FACILITY SERVICES LTD FCO OP - POE,Rental Payments - non residential
FCO,FCO,05/03/2018,9493245," 27,440.00 ",ENGIE LIMITED,Construction Project more than 10k
FCO,FCO,29/03/2018,9544137," 27,437.50 ",JAMES MARTIN CENTER MIIS,Programme Spend (Oracle Projects Control Account)
FCO,FCO,16/03/2018,9519166," 27,431.97 ",COLLEGE OF POLICING,Programme Spend (Oracle Projects Control Account)
FCO,FCO,20/03/2018,9525019," 27,418.45 ",FCO SERVICES,Assets Under Construction (Oracle PA Control Account)
FCO,FCO,23/03/2018,9531936," 27,360.25 ",FCO SERVICES,Assets Under Construction (Oracle PA Control Account)
FCO,FCO,05/03/2018,9493597," 27,302.12 ",AUTOSTAR FLAMINIA SPA,Assets Under Construction (Oracle PA Control Account)
FCO,FCO,12/03/2018,9507040," 27,290.81 ",KOIZA INTERNATIONAL LTD,"Purchase of Furniture, Fittings and Domestic Appliances"
FCO,FCO,01/03/2018,9487701," 27,285.10 ",G4S SECURE SOLUTIONS INT JORDAN,Local Guards
FCO,FCO,15/03/2018,9516526," 27,210.00 ",POWER ELECTRICS GENERATORS LTD,Assets Under Construction (Oracle PA Control Account)
FCO,FCO,14/03/2018,9513630," 27,175.62 ",HARIS ENTERPRISES PVT LTD,Local Guards
FCO,FCO,13/03/2018,9511686," 27,159.00 ",FCO SERVICES,Information Systems Implementation
FCO,FCO,16/03/2018,9517986," 27,152.41 ",YOUTH PIONEER SOCIETY,Recharge Suspense Account (Oracle PA Control Account)
FCO,FCO,21/03/2018,9526883," 27,103.00 ",KPMG LLP,Training Courses
FCO,FCO,16/03/2018,9518314," 27,059.37 ",Entreprise Niono SARL,Recharge Suspense Account (Oracle PA Control Account)
FCO,FCO,06/03/2018,9495194," 27,052.71 ",COLLEGE OF POLICING,Programme Spend (Oracle Projects Control Account)
FCO,FCO,27/03/2018,9539061," 27,047.03 ",SCOTTISH WIDOWS PLC,Additional Volunteer Contribution
FCO,FCO,02/03/2018,9489105," 27,002.35 ",NZ INSTITUTE OF ECONOMIC RESEARCH INC,Programme Spend (Oracle Projects Control Account)
FCO,FCO,12/03/2018,9507045," 27,000.39 ",INTERNATIONAL COFFEE ORGANIZATION,Protocol - General VAT Refunds to Other Organisations
FCO,FCO,27/03/2018,9538872," 26,976.48 ",FCO SERVICES,Assets Under Construction (Oracle PA Control Account)
FCO,FCO,20/03/2018,9524859," 26,941.07 ",ACCOMMODATION PROVIDER,Rental Payments - residential
FCO,FCO,13/03/2018,9512218," 26,938.31 ",ISS FACILITY SERVICES LTD FCO OP,Multiple Accounts
FCO,FCO,19/03/2018,9522095," 26,863.34 ",UD TRUCKS,Assets Under Construction (Oracle PA Control Account)
FCO,FCO,08/03/2018,9501364," 26,667.00 ",FUTURE EARTH LTD,Programme Spend (Oracle Projects Control Account)
FCO,FCO,01/03/2018,9486732," 26,557.38 ",NONVIOLENT PEACEFORCE,Programme Spend (Oracle Projects Control Account)
FCO,FCO,15/03/2018,9516895," 26,534.47 ",KPMG ADVISORY SERVICES,Programme Spend (Oracle Projects Control Account)
FCO,FCO,15/03/2018,9517102," 26,522.58 ",JAMES R WALLS CONTRACTING CO INC,Construction Project more than 10k
FCO,FCO,26/03/2018,9535507," 26,520.00 ",THE CHAMBERS,Legal Consultancy
FCO,FCO,16/03/2018,9519193," 26,507.63 ",FCO SERVICES,Assets Under Construction (Oracle PA Control Account)
FCO,FCO,04/03/2018,9492497," 26,466.23 ",AETNA,Subsidy To Local Medical Schemes
FCO,FCO,28/03/2018,9541724," 26,450.36 ",IRISH LIFE,Local Staff Pension Contributions
FCO,FCO,21/03/2018,9526790," 26,417.12 ",CET TRADING OIL AND GAS LIMITED,Fuel Oil Residential
FCO,FCO,27/03/2018,9538794," 26,409.43 ",FCO SERVICES,Construction Project more than 10k
FCO,FCO,29/03/2018,9543747," 26,387.54 ",OSPREA LOGISTICS LTD,Programme Spend (Oracle Projects Control Account)
FCO,FCO,21/03/2018,9527326," 26,385.50 ",CAPITA BUSINESS SERVICES LTD,Language Exams (excl Hays)
FCO,FCO,15/03/2018,9516730," 26,347.49 ",GOVERNMENT COMMUNICATIONS BUREAU ADMIN A/C 6253,Customer Refund Account
FCO,FCO,20/03/2018,9524549," 26,274.00 ",DEFENCE BUSINESS SERVICES FINANCE,Misc Security Payments
FCO,FCO,23/03/2018,9531122," 26,263.25 ",ICEA LION,Recharge Suspense Account (Oracle PA Control Account)
FCO,FCO,27/03/2018,9538844," 26,242.80 ",FCO SERVICES,Estates Management Services
FCO,FCO,12/03/2018,9507054," 26,205.73 ",NORTH EAST ATLANTIC FISHERIES COMMN,Protocol - General VAT Refunds to Other Organisations
FCO,FCO,06/03/2018,9495190," 26,177.00 ",CHINA-BRITAIN BUSINESS COUNCIL,Programme Spend (Oracle Projects Control Account)
FCO,FCO,29/03/2018,9544107," 26,154.00 ",ADVICE ON INDIVIDUAL RIGHTS IN EUROPE,Programme Spend (Oracle Projects Control Account)
FCO,FCO,14/03/2018,9513815," 26,004.80 ",HYUNDAI MOTORS NIG LTD,Recharge Suspense Account (Oracle PA Control Account)
FCO,FCO,14/03/2018,9513816," 26,004.80 ",HYUNDAI MOTORS NIG LTD,Recharge Suspense Account (Oracle PA Control Account)
FCO,FCO,12/03/2018,9507110," 26,003.93 ",DFID DEPT INTERNATIONAL DEVELOPMENT,Programme Spend (Oracle Projects Control Account)
FCO,FCO,23/03/2018,9531850," 26,000.00 ",FCO SERVICES,IT/IS Consultancy
FCO,FCO,12/03/2018,9506010," 25,934.73 ",KIPEPEO APARTMENTS LTD,Recharge Suspense Account (Oracle PA Control Account)
FCO,FCO,06/03/2018,9495535," 25,892.65 ",ALZAD ALLIBI FOR CATERING SERVICES,Estates Management Services
FCO,FCO,07/03/2018,9498305," 25,880.33 ",FCO SERVICES,Assets Under Construction (Oracle PA Control Account)
FCO,FCO,16/03/2018,9519194," 25,839.90 ",EUROPEAN COUNCIL ON FOREIGN RELATIONS,Programme Spend (Oracle Projects Control Account)
FCO,FCO,14/03/2018,9514080," 25,821.22 ",HANDICAP INTERNATIONAL UK,Programme Spend (Oracle Projects Control Account)
FCO,FCO,07/03/2018,9498463," 25,651.00 ",OPEN UNIVERSITY WORLDWIDE,Training Courses
FCO,FCO,07/03/2018,9498255," 25,644.01 ",KOIZA INTERNATIONAL LTD,"Purchase of Furniture, Fittings and Domestic Appliances"
FCO,FCO,22/03/2018,9528646," 25,638.71 ",DATACOM EMPLOYER SERVICES,Le Staff Pay
FCO,FCO,26/03/2018,9535621," 25,601.00 ",FALKLAND ISLANDS GOVERNMENT,Programme Spend (Oracle Projects Control Account)
FCO,FCO,26/03/2018,9534818," 25,563.78 ",AMERICAN LIFE INSURANCE COMPANY,Medical Supplies
FCO,FCO,06/03/2018,9495443," 25,554.24 ",LANGUAGE SERVICES DIRECT,Language Tuition: Essential
FCO,FCO,20/03/2018,9525269," 25,550.22 ",UNIVERSITY OF OTTAWA,Programme Spend (Oracle Projects Control Account)
FCO,FCO,05/03/2018,9492653," 25,513.78 ",ACCOMMODATION PROVIDER,Rental Payments - residential
FCO,FCO,21/03/2018,9527220," 25,499.26 ",IKA,Local Staff Pension Contributions
FCO,FCO,12/03/2018,9505864," 25,453.81 ",L�EQUIPE TROIS,Programme Spend (Oracle Projects Control Account)
FCO,FCO,21/03/2018,9527176," 25,416.92 ",ADAM SMITH INTERNATIONAL,Programme Spend (Oracle Projects Control Account)
FCO,FCO,15/03/2018,9516676," 25,404.75 ",KOIZA INTERNATIONAL LTD,"Purchase of Furniture, Fittings and Domestic Appliances"
FCO,FCO,14/03/2018,9513477," 25,399.55 ",JCLEC FOUNDATION,Programme Spend (Oracle Projects Control Account)
FCO,FCO,22/03/2018,9529439," 25,353.00 ",CORD GLOBAL,Programme Spend (Oracle Projects Control Account)
FCO,FCO,15/03/2018,9515889," 25,348.13 ",G4S SECURITY SERIVICES GHANA LTD,Local Guards
FCO,FCO,07/03/2018,9498115," 25,324.46 ",ORACLE CORPORATION (UK) LTD,IT/IS Consultancy
FCO,FCO,12/03/2018,9508290," 25,309.09 ",INTERSERVE FM LTD,Assets Under Construction (Oracle PA Control Account)
FCO,FCO,13/03/2018,9509820," 25,271.30 ",RULE OF LAW AND EMPOWERMENT INITIATIVE,Programme Spend (Oracle Projects Control Account)
FCO,FCO,26/03/2018,9535233," 25,214.32 ",AQUALITH TECHNOLOGIES LLC,Programme Spend (Oracle Projects Control Account)
FCO,FCO,27/03/2018,9538842," 25,158.00 ",FCO SERVICES,Assets Under Construction (Oracle PA Control Account)
FCO,FCO,22/03/2018,9529311," 25,123.21 ",PICKFORDS MOVE MANAGEMENT LTD,Heavy Baggage
FCO,FCO,15/03/2018,9516624," 25,026.06 ",BAE SYSTEMS APPLIED INTELLIGENCE LIMITED,Information Systems Maintenance
FCO,FCO,29/03/2018,9543741," 25,026.06 ",BAE SYSTEMS APPLIED INTELLIGENCE LIMITED,Information Systems Maintenance
FCO,FCO,15/03/2018,9516174," 25,020.92 ",LOWY INSTITUTE FOR INTERNATIONAL POLICY,Programme Spend (Oracle Projects Control Account)
FCO,FCO,13/03/2018,9511837," 25,000.12 ",THE ASSOCIATION OF COMMONWEALTH UNIVERSITIES,Sponsorship (Income and Expenditure)
FCO,FCO,23/03/2018,9531651,"-28,917.87 ",APOLLO PROPERTY MANAGEMENT,Property Maintenance Overseas Non Residential
FCO,FCO,21/03/2018,9527395,"-31,632.78 ",KOIZA INTERNATIONAL LTD,"Purchase of Furniture, Fittings and Domestic Appliances"
FCO,FCO,16/03/2018,9518985,"-37,717.76 ",BUR OTHER DEBTORS,Recharge Suspense Account (Oracle PA Control Account)
FCO,FCO,01/03/2018,9485849,"-37,834.94 ",EMMAHALY PETROLEUM COMPANY LTD,Fuel Oil Non-Residential
FCO,FCO,27/03/2018,9473797,"-45,689.59 ",AL GHODWA,Assets Under Construction (Oracle PA Control Account)
FCO,FCO,01/03/2018,9484633,"-51,973.83 ",COGENT ELECTRICAL SERVICES LTD FORM WES,Assets Under Construction (Oracle PA Control Account)
FCO,FCO,07/03/2018,9498242,"-68,714.13 ",UNIVERSITY OF OXFORD,Programme Spend (Oracle Projects Control Account)
FCO,FCO,01/03/2018,9394907,"-73,454.06 ",UNITED NATIONS,Programme Spend (Oracle Projects Control Account)
FCO,FCO,21/03/2018,9527756,"-80,749.08 ",BEB OTHER DEBTORS,Multiple Accounts
FCO,FCO,15/03/2018,9516212,"-96,849.11 ",ISS FACILITY SERVICES LTD FCO OP,Construction Project more than 10k
FCO,FCO,01/03/2018,9483117,"-110,618.15 ",UNITED NATIONS,Programme Spend (Oracle Projects Control Account)
FCO,FCO,07/03/2018,9498549,"-215,000.00 ",DEFENCE BUSINESS SERVICES FINANCE,Programme Spend (Oracle Projects Control Account)
FCO,FCO,01/03/2018,9486499,"-371,133.28 ",THE BRITISH COUNCIL,Programme Spend (Oracle Projects Control Account)
FCO,FCO,02/03/2018,9489328,"-459,216.62 ",SAP OTHER DEBTORS,Proceeds from Assets held for sale
FCO,FCO,29/03/2018,9543751,"-950,000.00 ",COMPUTACENTER UK LTD,Specialist Contractors
FCO,FCO,01/03/2018,9442688,"-1,151,904.72 ",EUROPEAN BANK FOR RECONSTRUCTION AND DEVELOPMENT,Protocol - General VAT Refunds to Other Organisations
FCO,FCO,01/03/2018,9486063,"-1,737,472.55 ",COLUMBUS TRAVELS AND TOURS LTD,Recharge Suspense Account (Oracle PA Control Account)
